Cogmind - Beta 15 @@@ ROGUE MODE // 2025.07.05 @ 23:41:39 Player: Cracklepappy Result: Self-destructed Performance ------------- Evolutions (7) 3500 Regions Visited (28) 5600 Robots Destroyed (438) 2190 Value Destroyed (22214) 22214 Prototype IDs (44) 880 Alien Tech Used (0) 0 Bonus (19837) 19837 TOTAL SCORE: 54221 Bonus ------- Triggered High Security 500 High Alert Combat Kills 7314 Follower Combat Kills 6551 Entered Garrisons 800 Used RIF Installer 2000 Network Hubs Disabled 400 Registered with UFD 300 MAIN.C Attacked Warlord 500 Warlord Defense Kills 616 Built Enhanced Grunts 300 A7 Reached Mainframe 300 Met R17 at Cetus 500 Met R17 at Research 2000 Friendly Fire -2244 Cogmind --------- Core Integrity 1223/1300 Matter 300/300 Energy 186/880 System Corruption 6% Temperature Warning (303) Movement Rolling (138) Ox3 Location -3/Quarantine Parts ------- > --- POWER (2) -------- Reinforced Fission Core Light Antimatter Reactor > --- PROPULSION (6) --- Armored Wheel Armored Wheel Armored Wheel Armored Wheel High-density Centrium Wheel > --- UTILITY (8) ------ Cargo Storage Unit Advanced Energy Well Graphene Brace > --- WEAPON (5) ------- Improved Proton Missile Launcher Voltaic Drivehammer > --- INVENTORY (30) --- Biometal Medium Treads Advanced Heat Sink High-capacity Storage Unit Matter Compressor (250) Matter Compressor (250) Deep Structural Scanner IFF Parser Improved Kinecellerator Improved Medium Armor Plating Advanced Force Field Improved Hacking Suite Advanced System Shield Authchip [Weapon] Relay Coupler [Proto] (9) Relay Coupler [Proto] (9) Relay Coupler [Proto] (9) Relay Coupler [Proto] (9) Advanced Component Analysis Suite Long-range Tractor Beam Advanced KE Penetrator Mini Smartbomb Launcher Tiamat Missile Launcher Tiamat Missile Launcher Advanced Remote Datajack LU-1G1's Laser Shovel Improved Plasma Cutter CPS Tube (2) IN-MT5's Pitchfork "Insurrection" (19) IN-MT5's Pitchfork "Insurrection" (13) Peak State ------------ > --- POWER ------------ Reinforced Deuterium Engine Quantum Reactor > --- PROPULSION ------- Centrium Heavy Treads Centrium Heavy Treads Centrium Heavy Treads > --- UTILITY ---------- Improved Cooling System Huge Storage Unit Deep Structural Scanner Centrium Medium Armor Plating Improved Hacking Suite > --- WEAPON ----------- Advanced Variable Charge Gun Advanced Variable Charge Gun Advanced KE Penetrator Advanced KE Penetrator > --- INVENTORY -------- Reinforced Deuterium Engine Quantum Reactor Centrium Heavy Treads Armored Huge Wheel Improved Cooling System Cargo Storage Unit Energy Well Matter Compressor Improved Hacking Suite Authchip [Weapon] Relay Coupler [NC] Improved Corruption Screen Improved Corruption Screen High-powered Tractor Beam Plasma Rifle Heavy Plasma Cannon Heavy Plasma Cannon Advanced KE Penetrator LU-1G1's Laser Shovel CPS Tube Voltaic Drivehammer Phasing Sabre [Rating: 134] Favorites ----------- Power Heavy Ion Engine Engine Heavy Ion Engine Power Core Neutrino Core Reactor Light Antimatter Reactor Propulsion Light Treads Treads Light Treads Wheel Armored Wheel Flight Unit Improved Flight Unit Utility Huge Storage Unit Device Improved Cooling System Storage Huge Storage Unit Processor Advanced Target Analyzer Hackware Improved Hacking Suite Protection Layered Heavy Armor Plating Weapon KE Penetrator Energy Gun Quantum Rifle Energy Cannon Heavy Plasma Cannon Ballistic Gun KE Penetrator Ballistic Cannon Heavy Mass Driver Launcher Mini Smartbomb Launcher Special Weapon Remote Datajack Slashing Weapon Mining Claw Build | -11 -10 -10 -9 -9 -9 -9 -9 -6 -6 -6 -6 -6 -6 -5 -5 -5 -5 -5 -5 -4 -4 -4 -4 -4 -4 -3 -3 -3 ------- Run | Yrd Mat Min Mat Sto Gar Rec Scr Fac Ext Cet Arc Hub Gar Fac Was Fac Gar Fac Gar Fac Was Fac Upp Upp War Pro Res Qua Slots Evolved 14 | . . . 2 . . . . 6 . . . . . 2 . . . . . 2 . . . . . . 2 . Power 1 | . . . . . . . . . . . . . . 1 . . . . . . . . . . . . . . Propulsion 4 | . . . 1 . . . . 2 . . . . . 1 . . . . . . . . . . . . . . Utility 6 | . . . . . . . . 3 . . . . . . . . . . . 2 . . . . . . 1 . Weapon 3 | . . . 1 . . . . 1 . . . . . . . . . . . . . . . . . . 1 . Parts Attached 303 | 7 10 7 16 28 5 5 14 19 20 7 9 5 11 4 6 8 28 10 16 4 1 22 6 6 1 9 14 5 Power 43 | 1 2 1 3 4 . . 1 1 2 1 . 1 2 1 . . 5 2 6 . . 5 . 2 . 1 2 . Engine 21 | 1 2 1 3 4 . . . . 2 1 . 1 . 1 . . 3 . 2 . . . . . . . . . Core 9 | . . . . . . . 1 1 . . . . . . . . . 2 3 . . . . 1 . . 1 . Reactor 13 | . . . . . . . . . . . . . 2 . . . 2 . 1 . . 5 . 1 . 1 1 . Propulsion 68 | 2 1 3 4 11 1 3 6 1 8 2 . 2 1 1 . . 5 . 3 . . 4 1 2 . 6 1 . Treads 46 | 2 1 3 4 10 1 3 . . 4 2 . 2 1 1 . . 5 . 3 . . 1 1 2 . . . . Leg . | . . . . . . . . . . . . . . . . . . . . . . . . . . . . . Wheel 17 | . . . . . . . 3 . 4 . . . . . . . . . . . . 3 . . . 6 1 . Hover . | . . . . . . . . . . . . . . . . . . . . . . . . . . . . . Flight 5 | . . . . 1 . . 3 1 . . . . . . . . . . . . . . . . . . . . Utility 93 | 2 3 1 3 3 3 2 2 11 4 1 7 . 3 1 3 5 12 2 2 4 1 5 1 2 . 1 5 4 Device 43 | 1 . 1 . . 2 . 1 4 2 . 3 . 1 . 2 3 7 1 . 2 . 3 1 2 . . 3 4 Storage 8 | 1 2 . . . . . . 1 1 . . . . 1 . . 1 . . 1 . . . . . . . . Processor 5 | . . . . . . . 1 3 . . . . . . . . . . . 1 . . . . . . . . Hackware 15 | . . . . 1 . . . 3 . . 1 . 2 . 1 2 1 1 1 . 1 . . . . . 1 . Protection 22 | . 1 . 3 2 1 2 . . 1 1 3 . . . . . 3 . 1 . . 2 . . . 1 1 . Artifact . | . . . . . . . . . . . . . . . . . . . . . . . . . . . . . Weapon 99 | 2 4 2 6 10 1 . 5 6 6 3 2 2 5 1 3 3 6 6 5 . . 8 4 . 1 1 6 1 Energy Gun 17 | 2 . . . . . . 1 1 1 1 1 . 2 . 1 . . 1 2 . . 2 1 . . . 1 . Energy Cannon 10 | . 2 1 1 1 . . . . . . . 1 1 . . 1 . . . . . . . . . . 2 . Ballistic Gun 44 | . 2 . 5 8 1 . . 3 2 . 1 . 2 . 1 2 3 4 2 . . 3 2 . 1 . 2 . Ballistic Cannon 9 | . . . . . . . . . 2 . . . . 1 . . 2 . . . . 2 1 . . 1 . . Launcher 3 | . . 1 . . . . . . . . . . . . . . . . . . . 1 . . . . . 1 Special Weapon 11 | . . . . . . . 3 . 1 1 . 1 . . 1 . 1 1 1 . . . . . . . 1 . Impact Weapon . | . . . . . . . . . . . . . . . . . . . . . . . . . . . . . Slashing Weapon 5 | . . . . 1 . . 1 2 . 1 . . . . . . . . . . . . . . . . . . Piercing Weapon . | . . . . . . . . . . . . . . . . . . . . . . . . . . . . . Special Melee Weapon . | . . . . . . . . . . . . . . . . . . . . . . . . . . . . . Unidentified Prototypes 15 | . . . 1 4 . . 1 1 . 2 2 . . . . . . . . 1 . 1 . . . . 2 . Corrupted Parts 6 | . . . . . . . . . . . 1 . 5 . . . . . . . . . . . . . . . System Corruption 42 | . . . . . . . . . . . 8 . 34 . . . . . . . . . . . . . . . Parts Lost 49 | . 1 3 . . . 1 . . 2 . . . 1 . . . 9 4 . . . 15 1 . 3 1 . 8 Power 7 | . . . . . . . . . 1 . . . . . . . 1 2 . . . 3 . . . . . . Propulsion 13 | . 1 2 . . . . . . 1 . . . . . . . . . . . . 5 1 . 2 . . 1 Utility 10 | . . . . . . 1 . . . . . . 1 . . . 2 1 . . . 1 . . . 1 . 3 Weapon 19 | . . 1 . . . . . . . . . . . . . . 6 1 . . . 6 . . 1 . . 4 Highest Loss Streak 7 | . 1 2 . . . 1 . . 1 . . . 1 . . . 6 2 . . . 4 1 . 3 1 . 7 To Critical Strikes 3 | . . . . . . . . . . . . . . . . . . . . . . 1 . . 2 . . . Average Backups 23 | 5 19 23 21 24 24 25 23 4 12 23 22 20 20 21 21 20 21 24 26 26 27 27 28 29 28 27 29 29 Power 1 | . 1 . . . . 1 . . . 3 3 2 2 2 1 1 . . . . . 1 1 1 2 1 . . Propulsion 2 | 2 3 1 . 5 6 6 6 . 2 4 3 3 4 3 2 3 2 1 1 1 1 . . . . . . . Utility 9 | . 3 7 10 9 9 8 7 . 3 4 4 5 5 7 10 8 9 15 15 16 16 16 16 17 17 16 17 18 Weapon 7 | 1 10 13 10 8 8 8 7 2 3 7 8 7 6 7 4 5 5 4 5 5 5 5 6 6 5 5 8 7 Tool/Special . | . . . . . . . . . . . . . . . . . . . . . . . . . . . . . Unused Backups 102 | . 7 2 19 7 3 . 8 2 7 3 2 2 1 2 4 1 2 . 2 . 1 3 . 1 . 1 3 19 Power 3 | . . . . . . . . . . 1 . 1 . . . . . . . . . . . . . . 1 . Propulsion 12 | . 4 . . 1 . . . 1 2 1 . . . 1 1 . . . . . . . . . . . . 1 Utility 47 | . 1 . 6 4 2 . 6 . 4 . . . 1 . 3 1 1 . 1 . 1 1 . 1 . . . 14 Weapon 37 | . 2 2 13 2 . . 2 1 1 1 1 . . 1 . . 1 . 1 . . 2 . . . 1 2 4 Tool/Special 3 | . . . . . 1 . . . . . 1 1 . . . . . . . . . . . . . . . . Average Slot Usage (%) 87 | . 100 99 99 100 100 98 89 90 91 88 85 86 85 82 82 81 79 73 70 72 73 71 64 75 77 74 88 88 Engine 6 | . 14 14 11 11 11 11 10 . 2 6 6 6 5 5 9 5 2 . . . . . . . . . . . Core 1 | . . . . . . . . 6 3 . . . . . . . . 6 10 10 10 1 . 4 5 5 4 4 Reactor 2 | . . . . . . . . . . . . . . 4 1 5 7 2 . . . 7 10 5 5 5 4 4 Treads 21 | . 28 27 33 32 33 33 25 . 6 14 20 20 20 17 17 17 17 17 17 15 15 12 11 23 25 13 . . Wheel 2 | . . . . . . . 5 . 7 7 . . . . . . . . . . . 3 1 . . 2 28 28 Flight 1 | . . . . . . . 1 30 14 . . . . . . . . . . . . . . . . . . . Device 6 | . 3 12 . . . . 1 9 9 6 9 6 12 11 5 5 9 10 5 10 5 4 9 10 10 10 17 18 Storage 7 | . 14 14 11 11 11 11 10 . 2 6 6 6 6 5 5 5 5 5 5 5 5 5 5 5 5 5 4 4 Processor 2 | . . . . . . . . 10 10 6 6 6 . . . . . . . 4 5 5 5 5 5 5 . . Hackware 2 | . . . . . . . . 5 6 6 6 6 6 5 10 11 5 5 1 . 4 5 . . . . . . Protection 6 | . 10 1 10 10 10 10 9 4 2 6 2 6 6 5 5 4 4 . 4 5 5 5 5 5 5 5 4 4 Energy Gun 2 | . 1 . . . . . 6 1 . 3 10 . 7 10 5 4 . 3 1 . . 1 1 5 5 5 . . Energy Cannon 2 | . . 25 1 . . . . . . . . 3 6 . 2 5 2 2 . . . . . . . . 2 6 Ballistic Gun 15 | . 25 1 31 31 29 31 . 10 20 15 15 21 10 11 10 11 18 12 20 21 15 11 5 5 5 8 12 8 Special Weapon 1 | . . . . . . . 8 1 . 3 . . . . 1 . . 1 . . 4 2 . . . 1 4 4 Slashing Weapon 1 | . . . . 1 3 . 7 6 . . . . . . . . . . . . . . . . . . . . Peak Build Rating 134 | 7 12 13 22 25 26 24 33 68 72 103 109 106 111 134 134 131 133 118 118 132 132 131 118 123 123 119 124 123 Average Rating 72 | 5 11 12 20 21 24 23 22 58 62 90 105 104 103 129 127 130 119 104 113 128 127 118 112 121 122 113 114 118 On Entrance 82 | . 7 12 13 20 25 24 17 33 65 72 103 105 103 111 130 130 129 115 104 117 130 127 111 118 123 114 101 121 Naked Turns . | . . . . . . . . . . . . . . . . . . . . . . . . . . . . . Heaviest Build 245 | 12 92 93 107 104 104 104 98 26 126 134 123 128 135 151 152 153 228 212 213 215 215 219 228 226 220 221 236 245 Greatest Support 240 | 40 40 40 60 69 69 66 63 26 90 190 190 190 180 240 240 240 240 215 225 225 225 230 130 186 186 130 80 80 Greatest Overweight (x) 21 | . 2 2 1 1 1 1 2 . 6 4 . . 1 . . . 1 . . . . 21 2 1 1 8 3 3 Average Overweight (x) . | . 1 2 1 1 1 1 1 . 1 2 . . . . . . . . . . . 2 1 1 1 1 2 2 Largest Inventory Capacity 30 | 8 25 25 25 25 25 25 25 20 25 25 25 25 25 25 25 25 30 30 30 30 30 30 30 30 30 30 30 30 Average Capacity 25 | 7 21 25 25 25 25 25 24 5 13 25 25 25 25 25 25 25 25 30 30 30 30 30 30 30 30 30 30 30 Most Carried 30 | 8 25 25 25 25 25 25 25 5 25 25 25 25 25 25 25 25 30 30 30 30 30 30 30 30 30 30 30 30 Average Carried 24 | 5 19 24 24 24 24 24 23 4 12 24 24 24 24 24 24 24 25 29 29 29 30 29 29 29 29 28 29 29 Final Capacity 30 | 8 25 25 25 25 25 25 5 5 25 25 25 25 25 25 25 25 30 30 30 30 30 30 30 30 30 30 30 30 Final Carried 30 | 8 24 25 25 25 25 25 5 5 25 25 25 24 25 25 25 25 30 30 30 30 30 30 30 30 28 30 30 29 Class Distribution -------------------- 42% | Scavenger-Tank 24% | Mutant 15% | Bothacker-Tank 5% | Tank 3% | Commander-Tank Dominant Class ---------------- Mutant | -10/Materials Mutant | -10/Mines Scavenger-Tank | -9/Materials Scavenger-Tank | -9/Storage Tank | -9/Garrison Scavenger-Tank | -9/Recycling Mutant | -9/Scraptown Sprinter | -6/Factory Scavenger-Gunner | -6/Extension Commander-Tank | -6/Cetus Commander-Tank | -6/Archives Scavenger-Tank | -6/Hub_04(d) Scavenger-Tank | -6/Garrison Scavenger-Tank | -5/Factory Scavenger-Tank | -5/Waste Scavenger-Tank | -5/Factory Scavenger-Tank | -5/Garrison Bothacker-Tank | -5/Factory Bothacker-Tank | -5/Garrison Bothacker-Tank | -4/Factory Bothacker-Tank | -4/Waste Bothacker-Tank | -4/Factory Scavenger-Tank | -4/Upper Caves Scavenger-Tank | -4/Upper Caves Scavenger-Tank | -4/Warlord Bothacker-Tank | -3/Proximity Caves Scavenger-Tank | -3/Research Scavenger-Tank | -3/Quarantine Resources | -11 -10 -10 -9 -9 -9 -9 -9 -6 -6 -6 -6 -6 -6 -5 -5 -5 -5 -5 -5 -4 -4 -4 -4 -4 -4 -3 -3 -3 ----------- Run | Yrd Mat Min Mat Sto Gar Rec Scr Fac Ext Cet Arc Hub Gar Fac Was Fac Gar Fac Gar Fac Was Fac Upp Upp War Pro Res Qua Matter Collected 19582 | 270 839 141 898 1149 797 373 195 327 932 191 428 568 458 712 213 234 2426 1023 1232 161 . 2971 782 455 190 691 765 161 Remotely 2298 | 108 214 . . . . . . . . . . . 149 . . . 855 . . . . 972 . . . . . . Salvage Created 24420 | 129 817 482 1293 1694 1042 641 . 249 1147 307 414 1245 858 762 363 758 3148 1131 2035 214 . 3451 338 61 155 1113 192 381 Parts 1109 | 14 60 14 73 100 55 15 . 15 39 8 24 56 33 50 9 35 161 38 89 13 . 123 13 . 4 40 3 25 Haulers Intercepted 13 | . 2 . 2 5 . . . . . . . 2 . . . 1 . 1 . . . . . . . . . . Recyclers Shooed 12 | . . . 2 1 . 5 . . 1 . . . . . . . . 1 . . . 2 . . . . . . Parts Field Recycled . | . . . . . . . . . . . . . . . . . . . . . . . . . . . . . Retrieved Matter . | . . . . . . . . . . . . . . . . . . . . . . . . . . . . . Parts Self-Destructed 63 | . . . . . . . . . . . . . . . . . . . . . . . 15 13 . 35 . . Prevented 1 | . . . . . . . . . . . . . . . . . . . . . . . 1 . . . . . Kills | -11 -10 -10 -9 -9 -9 -9 -9 -6 -6 -6 -6 -6 -6 -5 -5 -5 -5 -5 -5 -4 -4 -4 -4 -4 -4 -3 -3 -3 ------- Run | Yrd Mat Min Mat Sto Gar Rec Scr Fac Ext Cet Arc Hub Gar Fac Was Fac Gar Fac Gar Fac Was Fac Upp Upp War Pro Res Qua Combat Hostiles Destroyed 335 | . 21 8 24 22 18 3 . 1 14 4 1 12 18 11 1 10 41 16 24 3 . 49 11 1 4 10 3 5 Guns 257 | . 19 . 20 22 18 3 . 1 14 3 1 11 12 11 . 7 34 13 24 3 . 28 2 . 2 7 2 . Cannons 46 | . 2 6 . . . . . . . . . 1 4 . 1 3 7 3 . . . 10 2 1 2 3 1 . AOE 24 | . . 2 4 . . . . . . . . . . . . . . . . . . 11 7 . . . . . Classes Destroyed 26 | 2 6 4 . 2 1 . . . 1 . . 2 . 1 1 . 1 . . . . 2 2 . 1 . . . Worker 14 | . 1 1 2 4 . . . . . . 1 2 . 1 . . . . . . . 2 . . . . . . Builder 7 | . . 1 . 2 . . . . 1 . . 1 . 1 . . . . . . . 1 . . . . . . Tunneler 8 | 4 . 1 . . . . . . . . . 1 . . . . . . . . . 2 . . . . . . Hauler 13 | . 2 . 2 5 . . . . . . . 2 . . . 1 . 1 . . . . . . . . . . Recycler 27 | 1 1 4 2 4 . 6 . 1 2 . . 1 . 1 . 1 . 1 . . . 2 . . . . . . Mechanic 5 | . . . . 3 . . . . . . . . . 1 . . . . . . . 1 . . . . . . Operator 14 | . 1 . 2 1 . . . . . . 9 . . . . . . 1 . . . . . . . . . . Watcher 12 | . 3 . 2 1 1 . . 2 1 1 . . . . . . 1 . . . . . . . . . . . Swarmer 52 | . 6 . . 4 5 . . . . . . . 7 1 . 4 9 4 3 . . 4 2 . . 3 . . Cutter 6 | . . . . . . . . . . . . . . 2 . . 4 . . . . . . . . . . . Grunt 140 | . 15 . 19 11 8 . . . 9 . . 5 7 2 . 2 7 9 8 3 . 27 4 . 1 2 1 . Brawler 8 | . . . . . . . . . 1 . . . 2 1 . . 2 . . . . 1 . . 1 . . . Duelist 11 | . . . . 1 . . . . . . . . 1 . . . . . 2 . . 3 2 1 . . 1 . Protector 2 | . . . . . . . . . . . . . . . . . . . . . . 1 . . 1 . . . Sentry 48 | . . 2 5 6 1 3 . . 4 . 1 4 1 . . 1 3 3 7 . . 4 1 . . 2 . . Demolisher 2 | . . 1 . . . . . . . . . . . . . . . . . . . . . . . 1 . . Specialist 3 | . . . . . . . . . . . . 1 . . . . 1 . 1 . . . . . . . . . Hunter 24 | . . . . . . . . . . . . 1 . 3 . 1 11 1 2 . . 4 . . . . 1 . Programmer 21 | . . . . . 4 . . 1 . . . 1 . 2 . 2 2 . 2 . . 4 1 . . 2 . . Heavy 1 | . . . . . . . . . . . . . . . . . . . . . . 1 . . . . . . Behemoth 2 | . . . . . . . . . . . . . . . . . 2 . . . . . . . . . . . Compactor 1 | . . . . . . . . . . . . . . . 1 . . . . . . . . . . . . . Cetus Guard 4 | . . . . . . . . . . 4 . . . . . . . . . . . . . . . . . . Quarantine Guard 5 | . . . . . . . . . . . . . . . . . . . . . . . . . . . . 5 Executioner 1 | . . . . . . . . . . . . . . . . . . . . . . . . . 1 . . . Samaritan 1 | . . . . . . . . . . . . . . . . . . . . . . . 1 . . . . . Assembled 5 | . . 5 . . . . . . . . . . . . . . . . . . . . . . . . . . Thug 4 | . . . . . 2 . . . . . . 2 . . . . . . . . . . . . . . . . Martyr 2 | . . . . . . . . . . . . . . . 2 . . . . . . . . . . . . . Mutant 1 | . . . . . . . . . . . . . . . . . . . . . . . 1 . . . . . Best Kill Streak 12 | 2 4 4 6 6 3 5 . 1 4 3 3 11 5 8 1 4 12 6 8 3 . 9 7 1 4 3 1 2 Combat Bots Only 12 | . 3 2 5 6 3 1 . 1 4 3 1 9 5 5 1 4 12 5 8 3 . 8 7 1 4 3 1 2 Max Kills in Single Turn 3 | 1 2 2 2 2 2 1 . 1 2 2 1 2 3 2 1 2 2 2 2 3 . 3 1 1 1 1 1 1 Gunslinging 2 | . 1 . . 1 1 . . . . . . 1 . . . . 1 1 1 2 . 1 . . . . . . Exploded 3 | . . 1 2 . . . . . . . . . . . . . . . . . . 3 1 . . . . . Melee . | . . . . . . . . . . . . . . . . . . . . . . . . . . . . . Uniques/NPCs Destroyed . | . . . . . . . . . . . . . . . . . . . . . . . . . . . . . Combat | -11 -10 -10 -9 -9 -9 -9 -9 -6 -6 -6 -6 -6 -6 -5 -5 -5 -5 -5 -5 -4 -4 -4 -4 -4 -4 -3 -3 -3 -------- Run | Yrd Mat Min Mat Sto Gar Rec Scr Fac Ext Cet Arc Hub Gar Fac Was Fac Gar Fac Gar Fac Was Fac Upp Upp War Pro Res Qua Hostile Shots Fired 1874 | . 101 30 106 68 63 18 3 10 98 8 10 66 50 84 . 19 320 83 104 12 . 327 97 14 40 59 14 70 Missed 513 | . 29 6 33 14 17 3 . 4 23 2 3 24 15 18 . 8 67 25 27 3 . 103 25 7 10 19 4 24 Hits 1361 | . 72 24 73 54 46 15 3 6 75 6 7 42 35 66 . 11 253 58 77 9 . 224 72 7 30 40 10 46 Melee 44 | . . . . . . . . . . . . . 2 2 . . 25 . . . . 14 . . 1 . . . Projectile 1317 | . 72 24 73 54 46 15 3 6 75 6 7 42 33 64 . 11 228 58 77 9 . 210 72 7 29 40 10 46 AOE 25 | . . 8 . . 1 . . . . . . 2 . 2 . 2 . . 4 1 . . . . . 5 . . Critical Strikes 82 | . 1 1 3 . 4 . . . 1 3 . 1 2 2 . . 15 4 2 1 . 27 4 . 4 1 1 5 Actively Blocked 7 | . . 1 . . . . . . . . . . . . . . . . . . . . . . . . 1 5 Part Disruptions 1 | . . . . . . . . 1 . . . . . . . . . . . . . . . . . . . . Damage Taken 25385 | . 769 575 934 751 603 225 120 86 722 179 150 681 589 1012 . 315 5080 1164 1767 204 . 4939 971 173 748 799 129 1700 Core 2001 | . 114 104 113 64 44 30 22 15 42 . 27 120 18 104 . . 505 114 134 . . 141 33 . 125 55 . 77 Absorbed by Shields 1138 | . . . . . . . . . 154 89 . . . . . . . . . 75 . . . . . 291 . 529 Reduced by Siege Mode 240 | . . . . . . . . . . . . 25 . . . . 194 . 21 . . . . . . . . . Redirected to Shielding 29 | . 25 4 . . . . . . . . . . . . . . . . . . . . . . . . . . Ignored by Resistances 48 | . . . 32 . . . . . . . 16 . . . . . . . . . . . . . . . . . Regen/Repaired (Parts) 2900 | . . . 101 . . . 14 98 . . . . . . 585 154 456 . 436 63 . 621 372 . . . . . Core Remaining (%) 49 | 100 . 12 . . . . 31 . . . . . 73 . . . . . 14 . . . . . . 69 . . Volleys Fired 1173 | 25 67 31 78 77 44 29 8 8 44 6 36 34 48 26 26 22 115 44 74 9 5 121 35 10 11 92 20 28 Largest 4 | 2 2 2 3 3 3 3 1 3 4 3 4 4 4 4 4 4 4 4 4 4 1 4 3 3 4 4 4 1 Hottest 275 | 90 110 120 143 69 69 69 5 84 130 56 216 181 275 235 245 245 207 234 180 132 10 252 192 192 211 211 203 105 Shots Fired 3186 | 38 128 57 228 234 129 88 8 19 144 13 97 105 120 91 49 70 389 160 250 30 5 388 52 17 33 157 59 28 Gun 2649 | 38 114 2 219 234 129 88 . 19 141 11 97 90 68 87 23 48 321 113 242 29 . 322 27 7 22 114 44 . Cannon 438 | . 14 50 6 . . . . . 3 . . 15 52 4 17 19 68 42 3 . . 53 14 9 11 22 15 21 Launcher 31 | . . 5 3 . . . . . . . . . . . . . . . . . . 7 10 1 . . . 5 Special 68 | . . . . . . . 8 . . 2 . . . . 9 3 . 5 5 1 5 6 1 . . 21 . 2 Kinetic 2511 | . 106 2 219 234 129 88 . 19 144 10 71 90 55 46 6 36 328 116 207 29 . 341 36 13 25 114 47 . Thermal 580 | 38 21 50 6 . . . . . . 1 26 15 65 45 34 31 61 39 38 . . 34 5 3 8 43 12 5 Explosive 26 | . . 5 3 . . . . . . . . . . . . . . . . . . 7 10 1 . . . . Electromagnetic 26 | . 1 . . . . . . . . 2 . . . . . . . . . . . . . . . . . 23 Piercing 1 | . . . . . . . . . . . . . . . . . . . . . . . 1 . . . . . Robot Hit Streak 29 | 3 9 7 12 25 10 9 2 7 20 21 29 22 12 6 8 4 16 15 27 7 2 11 10 4 15 20 8 12 Robot Miss Streak 7 | 4 6 4 4 4 3 3 3 3 2 . 4 3 5 5 3 5 7 3 4 3 1 4 2 3 1 3 5 2 Penetration Max 2 | . . . . . . . . . . . . 1 1 1 1 2 1 1 1 . . 2 . . 1 1 1 . Secondary Targets 55 | . 2 . 4 4 4 . . . 4 . . 4 . 4 . . 9 3 6 2 . 9 . . . . . . Max Gunslinging Chain 2 | . 1 . 1 1 1 . . . 1 . . 1 . 1 . . 1 1 1 2 . 1 . . . . . . Shots Hit Robots 1936 | 20 90 29 141 150 101 56 4 12 113 12 59 60 49 43 36 30 227 92 169 17 3 220 25 5 19 112 25 17 Core Hits 940 | 6 50 23 55 61 41 17 . 5 55 5 31 35 27 26 8 22 108 41 74 8 . 130 29 8 10 52 9 4 Critical Kills 63 | . 1 . 2 . 1 . . . 1 . . 4 4 5 . 4 18 . 4 2 . 12 . . 1 4 . . Critical Parts Destroyed 92 | . . . 2 . . . . 1 . . . 4 1 4 1 5 31 4 4 2 . 18 3 . 1 10 1 . Critical Strikes 186 | . 2 . 4 . 2 . . 1 1 . . 8 6 10 5 9 54 5 11 4 . 37 5 . 4 17 1 . Burn 9 | . 1 . . . . . . . . . . . . 1 . . . . 3 . . 4 . . . . . . Meltdown 2 | . . . . . . . . . . . . . 2 . . . . . . . . . . . . . . . Destroy 164 | . 1 . 4 . 1 . . 1 1 . . 8 4 9 5 9 53 4 8 4 . 31 3 . 2 15 1 . Blast 8 | . . . . . . . . . . . . . . . . . 1 1 . . . 2 1 . 2 1 . . Sever 2 | . . . . . 1 . . . . . . . . . . . . . . . . . . . . 1 . . Impale 1 | . . . . . . . . . . . . . . . . . . . . . . . 1 . . . . . Melee Attacks 95 | . . . . 8 39 . 2 25 . 13 . . 8 . . . . . . . . . . . . . . . Impact . | . . . . . . . . . . . . . . . . . . . . . . . . . . . . . Slashing 95 | . . . . 8 39 . 2 25 . 13 . . 8 . . . . . . . . . . . . . . . Piercing . | . . . . . . . . . . . . . . . . . . . . . . . . . . . . . Sneak Attacks 1 | . . . . . . . . 1 . . . . . . . . . . . . . . . . . . . . Combat Hostiles . | . . . . . . . . . . . . . . . . . . . . . . . . . . . . . Follow-up Attacks . | . . . . . . . . . . . . . . . . . . . . . . . . . . . . . Damage Inflicted 51300 | 254 1380 732 2471 2297 1939 851 . 324 2393 609 1478 2154 1485 1649 1122 821 5700 2535 4484 426 . 8362 2352 537 618 2642 839 846 Guns 38023 | 254 1198 40 2073 2283 1381 818 . 257 2326 225 1478 1645 884 1649 580 610 4629 1867 4484 426 . 5238 417 111 370 2038 742 . Cannons 6936 | . 173 468 53 . . . . . 67 . . 212 601 . 542 204 1071 668 . . . 1149 521 180 248 287 97 395 Explosions 5258 | . . 208 345 . . . . . . 363 . 297 . . . . . . . . . 1975 1403 246 . . . 421 Melee 625 | . . . . . 558 . . 67 . . . . . . . . . . . . . . . . . . . . Ramming 79 | . 9 16 . 14 . 33 . . . . . . . . . 7 . . . . . . . . . . . . Kinetic 37146 | . 1147 40 2073 2283 1381 818 . 257 2393 197 1013 1645 841 1034 128 404 4761 1933 4050 426 . 5917 827 264 533 2039 742 . Thermal 8297 | 254 224 468 53 . . . . . . 28 465 212 644 615 994 410 939 602 434 . . 1032 111 27 85 603 97 . Explosive 3511 | . . 208 345 . . . . . . . . . . . . . . . . . . 1249 1403 246 . . . 60 Electromagnetic 1580 | . . . . . . . . . . 363 . 297 . . . . . . . . . 164 . . . . . 756 Impact 51 | . . . . . . . . . . 21 . . . . . . . . . . . . . . . . . 30 Slashing 625 | . . . . . 558 . . 67 . . . . . . . . . . . . . . . . . . . . Piercing 11 | . . . . . . . . . . . . . . . . . . . . . . . 11 . . . . . Highest Corruption 52 | . . . 2 6 10 10 . 1 2 8 8 16 52 1 1 3 3 3 3 . 11 11 11 11 11 2 . 6 Average Corruption 6 | . . . 1 6 7 10 . 1 1 5 4 7 18 1 1 2 3 3 3 . 6 11 11 11 11 1 . 3 Corruption Purged 15 | . . . . . . . . . . . 15 . . . . . . . . . . . . . . . . . Corruption Blocked . | . . . . . . . . . . . . . . . . . . . . . . . . . . . . . Effects 646 | . . . 1 51 78 58 . 2 8 17 9 37 74 1 12 16 41 11 38 . 3 84 38 44 3 9 . 11 Message Errors 158 | . . . . 15 15 19 . 2 2 3 1 12 14 . 4 3 9 4 5 . 1 21 10 11 2 1 . 4 Matter Fused 140 | . . . 1 6 23 10 . . 1 4 3 5 20 1 2 3 9 1 9 . . 18 10 10 1 1 . 2 Heat Flow Errors 80 | . . . . 5 7 5 . . 2 2 1 2 8 . 3 3 9 2 8 . . 5 8 8 . 1 . 1 Energy Discharges 91 | . . . . 8 12 10 . . . 3 1 5 10 . 2 3 5 1 5 . 1 14 3 5 . 2 . 1 Parts Rejected 5 | . . . . . . . . . . . . . 1 . . . . . 1 . . 3 . . . . . . Parts Fused 5 | . . . . . 2 . . . . . . . . . . 1 . . . . . . . 2 . . . . Data Loss (minor) 76 | . . . . 9 5 8 . . 2 3 1 6 5 . . 2 5 1 5 . 1 13 3 5 . 1 . 1 Data Loss (major) 34 | . . . . 2 5 2 . . . 1 . 3 7 . 1 1 2 1 1 . . 4 3 1 . . . . Misfires 24 | . . . . 4 4 2 . . 1 1 . 2 6 . . . 1 . 1 . . 1 . . . . . 1 Alerts 12 | . . . . 1 4 1 . . . . 1 . 1 . . . . . . . . 1 . 1 . 2 . . Weapon Failures 21 | . . . . 1 1 1 . . . . 1 2 2 . . . 1 1 3 . . 4 1 1 . 1 . 1 Overload Shots . | . . . . . . . . . . . . . . . . . . . . . . . . . . . . . Overflow Damage 515 | . . 18 . . 58 . . . 7 107 . 20 . . 2 . 24 20 . . . 13 154 56 . . . 36 Projectiles 153 | . . . . . . . . . 7 . . . . . 2 . 24 20 . . . 8 36 56 . . . . Explosions 304 | . . 18 . . . . . . . 107 . 20 . . . . . . . . . 5 118 . . . . 36 Melee 58 | . . . . . 58 . . . . . . . . . . . . . . . . . . . . . . . Knockbacks 12 | . . . . . . . . . . . . . . . . . . 2 . . . 6 2 2 . . . . Impact . | . . . . . . . . . . . . . . . . . . . . . . . . . . . . . Kinetic 11 | . . . . . . . . . . . . . . . . . . 2 . . . 6 1 2 . . . . Secondary 1 | . . . . . . . . . . . . . . . . . . . . . . . 1 . . . . . Self-Inflicted Damage 265 | . . 13 25 . . . . . . . . 102 . . . . . . . . . . . 27 . . . 98 Shots 6 | . . 1 1 . . . . . . . . 1 . . . . . . . . . . . 1 . . . 2 Rammed 11 | . 2 4 . 1 . 2 . . . . . . . . . 1 . . . . . 1 . . . . . . Targets Rammed 12 | . 3 4 . 1 . 2 . . . . . . . . . 1 . . . . . 1 . . . . . . Kicked . | . . . . . . . . . . . . . . . . . . . . . . . . . . . . . Crushed 1 | . 1 . . . . . . . . . . . . . . . . . . . . . . . . . . . Highest Temperature 654 | 210 228 138 165 216 265 226 . 30 272 148 182 180 269 312 198 393 654 135 289 5 . 606 261 236 415 379 257 397 Average Temperature 75 | 61 53 28 44 37 55 47 . 5 56 52 63 45 94 125 81 121 137 31 73 5 . 102 82 81 182 143 80 133 Received Heat Transfer 5516 | . 336 45 474 216 93 63 . . 243 31 36 96 114 27 . 66 1505 450 420 24 . 867 214 9 111 76 . . Effects 42 | 3 . . . . 1 . . . 2 . . . 3 1 . 2 7 . . . . 10 . . 5 3 . 5 Shutdowns 11 | . . . . . . . . . . . . . . . . . 4 . . . . 2 . . 2 1 . 2 Energy Bleed 7 | . . . . . . . . . 2 . . . . 1 . . . . . . . 2 . . . 1 . 1 Interference 16 | 3 . . . . 1 . . . . . . . 3 . . 2 2 . . . . 1 . . 3 . . 1 Matter Decay 2 | . . . . . . . . . . . . . . . . . . . . . . 2 . . . . . . Short Circuit 2 | . . . . . . . . . . . . . . . . . . . . . . . . . . 1 . 1 Damage (major) 3 | . . . . . . . . . . . . . . . . . . . . . . 3 . . . . . . Damage (core) 1 | . . . . . . . . . . . . . . . . . 1 . . . . . . . . . . . Siege Activations 6 | . . . . . . . . . . . . 1 . . . . 4 . 1 . . . . . . . . . Total Turns 96 | . . . . . . . . . . . . 23 . . . . 62 . 11 . . . . . . . . . Longest Duration 29 | . . . . . . . . . . . . 23 . . . . 29 . 11 . . . . . . . . . Martial Activations . | . . . . . . . . . . . . . . . . . . . . . . . . . . . . . Shielding Activations . | . . . . . . . . . . . . . . . . . . . . . . . . . . . . . Robots Disrupted . | . . . . . . . . . . . . . . . . . . . . . . . . . . . . . Combat Hostiles . | . . . . . . . . . . . . . . . . . . . . . . . . . . . . . Robots Corrupted 7 | . . . . . . . . . . 1 . 1 . . . . . . . . . . . . . . . 5 Combat Hostiles 6 | . . . . . . . . . . 1 . . . . . . . . . . . . . . . . . 5 Parts Fried 22 | . . . . . . . . . . 4 . 2 . . . . . . . . . . . . . . . 16 Impact Corruptions . | . . . . . . . . . . . . . . . . . . . . . . . . . . . . . Robots Melted 2 | . . . . . . . . . . . . . 2 . . . . . . . . . . . . . . . Combat Hostiles 2 | . . . . . . . . . . . . . 2 . . . . . . . . . . . . . . . Parts Melted 17 | . . 1 . . . . . . . . 1 . 6 1 1 1 2 1 1 . . 2 . . . . . . Heat Transferred 13462 | 717 592 999 111 . . . . . . 18 592 300 1050 1042 1442 457 1246 944 888 . . 1649 148 37 74 1073 83 . Parts Sabotaged . | . . . . . . . . . . . . . . . . . . . . . . . . . . . . . Parts Stolen . | . . . . . . . . . . . . . . . . . . . . . . . . . . . . . Parts Stripped . | . . . . . . . . . . . . . . . . . . . . . . . . . . . . . Power Chain Reactions 2 | . . . . . . . . . . . . 1 . . . . . . . . . 1 . . . . . . Alert | -11 -10 -10 -9 -9 -9 -9 -9 -6 -6 -6 -6 -6 -6 -5 -5 -5 -5 -5 -5 -4 -4 -4 -4 -4 -4 -3 -3 -3 ------- Run | Yrd Mat Min Mat Sto Gar Rec Scr Fac Ext Cet Arc Hub Gar Fac Was Fac Gar Fac Gar Fac Was Fac Upp Upp War Pro Res Qua Maximum Alert Level 5 | . 1 . 1 2 5 3 . . 2 1 . 5 5 4 1 3 5 4 5 5 4 5 . . . . . . Low Security (%) 41 | 100 93 100 88 60 . . . 100 75 6 100 9 . . 68 46 . . . . . . . . . . 100 100 Level 1 7 | . 6 . 11 29 9 . . . 12 93 . . . . 31 3 . . . . . . . . . . . . Level 2 10 | . . . . 9 14 67 . . 11 . . 1 . 73 . 8 3 . . . . 19 . . . . . . Level 3 14 | . . . . . 19 32 . . . . . 79 . 13 . 41 16 1 13 . 85 31 . . . . . . Level 4 12 | . . . . . 33 . . . . . . 6 18 13 . . 35 98 30 28 14 25 . . . . . . Level 5 14 | . . . . . 23 . . . . . . 1 81 . . . 45 . 56 69 . 23 . . . . . . High Security . | . . . . . . . . . . . . . . . . . . . . 2 . . . . . . . . Max Security . | . . . . . . . . . . . . . . . . . . . . . . . . . . . . . Peak Influence 2684 | 5 258 96 291 467 2005 901 . 58 521 360 164 1616 2542 1455 301 890 2245 1289 2684 2297 1100 2116 . . . . 119 126 Initial 1409 | . . 96 8 118 303 901 . . 5 272 101 . 1129 1334 301 . 553 1178 879 1409 1100 728 . . . . . 38 Average 693 | . 71 12 127 194 1165 623 . 19 146 271 79 906 2065 739 141 461 1496 1210 1865 1728 1070 1209 . . . . 10 14 Influence Increases 21901 | 25 727 134 768 1137 1742 114 . 227 1165 391 288 2442 1463 782 24 1416 1832 594 1965 1043 . 2323 276 239 65 240 176 303 Destroy 0b10 Robot/C 9980 | . 420 60 480 680 620 60 . 20 540 160 80 780 700 360 . 540 820 360 880 260 . 1300 220 160 60 200 120 100 Destroy 0b10 Robot/NC 780 | 25 40 35 50 110 20 30 . 15 45 10 45 70 . 45 . 40 45 15 25 25 . 55 . . 5 30 . . Destroy Leader 1610 | . 90 10 128 194 20 . . 14 46 . . 234 40 88 . 124 80 82 60 56 . 254 10 10 . 10 10 50 Allied During Kill 4061 | . . . . 43 147 . . . 410 170 125 1065 294 173 . 421 8 26 626 247 . 167 46 69 . . 24 . Successful Hack 493 | . 42 . 5 29 14 23 . 41 34 . . 61 12 36 . 40 15 40 7 . . 89 . . . . . 5 Select Force Hacks 60 | . 60 . . . . . . . . . . . . . . . . . . . . . . . . . . . Disable Machine 1200 | . 15 . 45 75 15 . . 15 15 15 30 105 45 30 . 165 45 45 . 285 . 195 . . . . . 60 Anti-Garrison Action 2000 | . . . . . 700 . . . . . . . 300 . . . 700 . 300 . . . . . . . . . Destroy Structure 1267 | . . 29 15 6 101 1 . 32 30 36 8 127 72 50 24 86 119 26 7 170 . 218 . . . . 22 88 Partial Spotted 135 | . 15 . . . . . . 90 30 . . . . . . . . . . . . . . . . . . . Lose Combat Pursuer 315 | . 45 . 45 . 105 . . . 15 . . . . . . . . . 60 . . 45 . . . . . . Influence Decreases 22146 | 25 479 359 509 952 204 1697 422 215 691 624 541 829 534 2464 884 626 377 1583 537 1425 1557 1270 1297 695 648 273 107 322 Entered New Map 11070 | . . 152 15 164 164 1104 422 . 7 214 152 . 484 1208 559 . 237 1067 377 1275 1497 312 775 205 616 33 . 31 Time Decay 7833 | 25 469 197 494 618 . 583 . 215 518 310 269 519 . 386 278 416 . 286 . 130 60 628 422 470 12 240 87 201 Lost Part 430 | . 10 10 . . . 10 . . 10 . . . 10 . . . 90 40 . . . 150 10 . 20 . . 70 Lost Ally 1559 | . . . . 20 40 . . . 102 100 120 160 40 120 47 210 50 40 160 20 . 180 90 20 . . 20 20 Purge Threat 1254 | . . . . 150 . . . . 54 . . 150 . 750 . . . 150 . . . . . . . . . . Squads Dispatched 95 | . 3 . 5 12 . . . 2 1 . . 19 . 5 . 13 . 8 . 5 . 17 . . . . 3 2 Investigation 19 | . 2 . 2 2 . . . 1 . . . 1 . 2 . 2 . 2 . . . 3 . . . . 2 . Extermination 10 | . . . . . . . . 1 . . . 4 . 1 . 1 . . . . . 3 . . . . . . Reinforcement 30 | . 1 . 3 2 . . . . 1 . . 7 . 2 . 3 . 2 . 4 . 4 . . . . 1 . Assault 17 | . . . . 2 . . . . . . . 4 . . . . . 1 . 1 . 7 . . . . . 2 Garrison 19 | . . . . 6 . . . . . . . 3 . . . 7 . 3 . . . . . . . . . . Intercept . | . . . . . . . . . . . . . . . . . . . . . . . . . . . . . Searches Triggered . | . . . . . . . . . . . . . . . . . . . . . . . . . . . . . Construction Impeded 10 | . . . . . . . . . . . . 2 . 1 . 2 . 1 . 2 . 2 . . . . . . Haulers Reinforced 3 | . . . . . . . . . . . . . . . . 1 . . . 1 . 1 . . . . . . Active Scanning Responses . | . . . . . . . . . . . . . . . . . . . . . . . . . . . . . Cargo Convoy Interrupts . | . . . . . . . . . . . . . . . . . . . . . . . . . . . . . Stealth | -11 -10 -10 -9 -9 -9 -9 -9 -6 -6 -6 -6 -6 -6 -5 -5 -5 -5 -5 -5 -4 -4 -4 -4 -4 -4 -3 -3 -3 --------- Run | Yrd Mat Min Mat Sto Gar Rec Scr Fac Ext Cet Arc Hub Gar Fac Was Fac Gar Fac Gar Fac Was Fac Upp Upp War Pro Res Qua Distress Signals 57 | . 1 . 2 5 . . . . 2 2 . 4 . . . 2 1 2 1 1 . 4 . . . 23 7 . Communications Jammed . | . . . . . . . . . . . . . . . . . . . . . . . . . . . . . Distress Signals . | . . . . . . . . . . . . . . . . . . . . . . . . . . . . . Times Spotted 594 | . 29 12 35 44 32 3 2 5 24 10 21 37 28 22 5 20 44 22 39 11 5 69 11 7 21 13 15 8 Peak Tracking Total 17 | . 4 2 6 5 6 1 4 3 4 5 2 8 4 6 2 4 7 4 7 5 3 9 7 5 17 4 6 4 Tactical Retreats 17 | . 2 2 2 . 5 . . . 1 . . . . . . . . . 2 . . 3 . . . . . . Traps | -11 -10 -10 -9 -9 -9 -9 -9 -6 -6 -6 -6 -6 -6 -5 -5 -5 -5 -5 -5 -4 -4 -4 -4 -4 -4 -3 -3 -3 ------- Run | Yrd Mat Min Mat Sto Gar Rec Scr Fac Ext Cet Arc Hub Gar Fac Was Fac Gar Fac Gar Fac Was Fac Upp Upp War Pro Res Qua Traps Triggered 34 | . 1 . 1 1 11 . . . 3 . . 3 2 1 . 1 . . 1 1 . 4 . . . . 2 2 Indirectly . | . . . . . . . . . . . . . . . . . . . . . . . . . . . . . Trap Hack Attempts . | . . . . . . . . . . . . . . . . . . . . . . . . . . . . . Triggered . | . . . . . . . . . . . . . . . . . . . . . . . . . . . . . Disarmed . | . . . . . . . . . . . . . . . . . . . . . . . . . . . . . Reprogrammed . | . . . . . . . . . . . . . . . . . . . . . . . . . . . . . Reused . | . . . . . . . . . . . . . . . . . . . . . . . . . . . . . Traps Extracted . | . . . . . . . . . . . . . . . . . . . . . . . . . . . . . Installed . | . . . . . . . . . . . . . . . . . . . . . . . . . . . . . Triggered . | . . . . . . . . . . . . . . . . . . . . . . . . . . . . . Most Traps Carried 3 | . . 3 3 3 . . . . . . . . . . . . . . . . . . . . . . . . Machines | -11 -10 -10 -9 -9 -9 -9 -9 -6 -6 -6 -6 -6 -6 -5 -5 -5 -5 -5 -5 -4 -4 -4 -4 -4 -4 -3 -3 -3 ---------- Run | Yrd Mat Min Mat Sto Gar Rec Scr Fac Ext Cet Arc Hub Gar Fac Was Fac Gar Fac Gar Fac Was Fac Upp Upp War Pro Res Qua Machines Disabled 115 | . 1 2 3 5 3 . 11 1 1 1 2 7 8 2 . 11 8 3 5 19 . 13 1 1 . 3 . 4 Max in Single Turn 3 | . 1 1 1 1 1 . 1 1 1 1 . 3 1 1 . 1 2 1 1 . . 3 1 1 . 1 . 1 Garrison Access 9 | . . . . . . . . 2 . . . 1 . 1 . . . . . 1 . 1 . . . . 2 1 Garrison Relay 12 | . . . . . 2 . . . . . . . 4 . . . 3 . 3 . . . . . . . . . Phase Generator 2 | . . . . . . . . . . . . . . . . . 1 . 1 . . . . . . . . . Network Hub 2 | . . . . . . . . . . . . 2 . . . . . . . . . . . . . . . . Machines Repaired . | . . . . . . . . . . . . . . . . . . . . . . . . . . . . . Machines Dismantled 1 | . . . . . . . . . . . . . . . . . . . 1 . . . . . . . . . Machines Sabotaged . | . . . . . . . . . . . . . . . . . . . . . . . . . . . . . Overloaded Fab Kills . | . . . . . . . . . . . . . . . . . . . . . . . . . . . . . Hacking | -11 -10 -10 -9 -9 -9 -9 -9 -6 -6 -6 -6 -6 -6 -5 -5 -5 -5 -5 -5 -4 -4 -4 -4 -4 -4 -3 -3 -3 --------- Run | Yrd Mat Min Mat Sto Gar Rec Scr Fac Ext Cet Arc Hub Gar Fac Was Fac Gar Fac Gar Fac Was Fac Upp Upp War Pro Res Qua Machines Accessed 113 | . 7 . 10 10 4 5 8 11 9 . . 11 1 7 . 7 2 3 2 1 . 8 . . . 1 2 4 Terminals 75 | . 4 . 8 9 4 5 . 5 9 . . 9 1 3 . 3 2 1 2 . . 6 . . . 1 . 3 Fabricators 7 | . . . . . . . . 2 . . . . . 2 . 1 . . . . . 1 . . . . 1 . Repair Stations 4 | . 1 . 1 . . . . . . . . . . 1 . 1 . . . . . . . . . . . . Recycling Units 2 | . 2 . . . . . . . . . . . . . . . . . . . . . . . . . . . Scanalyzers 4 | . . . 1 . . . . 2 . . . . . . . . . 1 . . . . . . . . . . Garrison Access 13 | . . . . 1 . . . 2 . . . 2 . 1 . 2 . 1 . 1 . 1 . . . . 1 1 Total Hacks 363 | . 22 . 28 31 14 12 60 25 18 . . 29 2 27 . 22 5 14 3 1 . 29 . . . 1 6 14 Successful 197 | . 14 . 10 13 1 5 60 13 10 . . 13 1 14 . 12 2 7 2 1 . 10 . . . 1 6 2 Failed 166 | . 8 . 18 18 13 7 . 12 8 . . 16 1 13 . 10 3 7 1 . . 19 . . . . . 12 Catastrophic 43 | . 3 . 7 2 4 1 . 1 1 . . 6 . 2 . 4 2 1 . . . 6 . . . . . 3 Database Lockouts . | . . . . . . . . . . . . . . . . . . . . . . . . . . . . . Manual 97 | . 18 . 13 5 3 2 . 5 5 1 . 7 . 10 . 7 1 2 . . . 10 . . . . 1 7 Terminals 218 | . 19 . 17 29 14 12 . 13 18 . . 25 2 16 . 8 5 4 3 . . 24 . . . 1 . 8 Fabricators 30 | . . . . . . . . 5 . . . . . 9 . 8 . . . . . 3 . . . . 5 . Repair Stations 6 | . 1 . 2 . . . . . . . . . . 1 . 2 . . . . . . . . . . . . Recycling Units 2 | . 2 . . . . . . . . . . . . . . . . . . . . . . . . . . . Scanalyzers 20 | . . . 9 . . . . 4 . . . . . . . . . 7 . . . . . . . . . . Garrison Access 27 | . . . . 2 . . . 3 . . . 4 . 1 . 4 . 3 . 1 . 2 . . . . 1 6 Terminal Hacks 128 | . 8 . . 10 1 5 60 3 10 . . 10 1 6 . 1 2 1 2 . . 6 . . . 1 . 1 Record 53 | . . . . . . . 52 . . . . . . . . . . . . . . . . . . 1 . . Part Schematic 13 | . 4 . . 3 . 3 . . 2 . . . . . . . . . . . . 1 . . . . . . Robot Schematic 2 | . 2 . . . . . . . . . . . . . . . . . . . . . . . . . . . Robot Analysis 8 | . . . . . . . 7 . 1 . . . . . . . . . . . . . . . . . . . Prototype ID Bank 8 | . 2 . . 1 . 2 . . . . . 2 . . . . . . . . . . . . . . . 1 Open Door 11 | . . . . 4 . . . . 5 . . . . . . . 1 . 1 . . . . . . . . . Level Access Points 1 | . . . . . . . . . . . . . . . . . . . . . . 1 . . . . . . Branch Access Points 1 | . . . . . . . . . . . . . . . . . . . . . . 1 . . . . . . Emergency Access Points 6 | . . . . . 1 . . . . . . 2 1 . . . 1 . 1 . . . . . . . . . Terminal Index 2 | . . . . . . . . . . . . 1 . . . . . . . . . 1 . . . . . . Fabricator Index 2 | . . . . . . . . 1 . . . . . 1 . . . . . . . . . . . . . . Alert Level 1 | . . . . . . . . . 1 . . . . . . . . . . . . . . . . . . . Unreport Threat 9 | . . . . 1 . . . . 1 . . 1 . 5 . . . 1 . . . . . . . . . . Locate Traps 5 | . . . . 1 . . . 1 . . . . . . . 1 . . . . . 2 . . . . . . Recall Reinforcements 1 | . . . . . . . . . . . . 1 . . . . . . . . . . . . . . . . Hauler Manifests 2 | . . . . . . . . 1 . . . 1 . . . . . . . . . . . . . . . . Zone Layout 2 | . . . . . . . . . . . . 2 . . . . . . . . . . . . . . . . Proto ID Catalog 1 | . . . . . . . 1 . . . . . . . . . . . . . . . . . . . . . Fabricator Hacks 16 | . . . . . . . . 3 . . . . . 2 . 5 . . . . . 2 . . . . 4 . Network Status 4 | . . . . . . . . . . . . . . 1 . 1 . . . . . 1 . . . . 1 . Load Schematic 8 | . . . . . . . . 2 . . . . . 1 . 2 . . . . . 1 . . . . 2 . Build 4 | . . . . . . . . 1 . . . . . . . 2 . . . . . . . . . . 1 . Repair Station Hacks 2 | . . . 2 . . . . . . . . . . . . . . . . . . . . . . . . . Scan Component 1 | . . . 1 . . . . . . . . . . . . . . . . . . . . . . . . . Repair 1 | . . . 1 . . . . . . . . . . . . . . . . . . . . . . . . . Recycling Unit Hacks . | . . . . . . . . . . . . . . . . . . . . . . . . . . . . . Scanalyzer 16 | . . . 8 . . . . 4 . . . . . . . . . 4 . . . . . . . . . . Insert Component 8 | . . . 4 . . . . 2 . . . . . . . . . 2 . . . . . . . . . . Analyze 8 | . . . 4 . . . . 2 . . . . . . . . . 2 . . . . . . . . . . Garrison Access Hacks 13 | . . . . 1 . . . 2 . . . 2 . 1 . 2 . 1 . 1 . 1 . . . . 1 1 Unlock Access 7 | . . . . 1 . . . . . . . 2 . . . 2 . 1 . . . . . . . . . 1 Seal Access 6 | . . . . . . . . 2 . . . . . 1 . . . . . 1 . 1 . . . . 1 . Unauthorized Hacks 21 | . 5 . . 2 . . . 1 . . . 1 . 5 . 4 . 1 . . . 1 . . . . 1 . Terminals 5 | . 3 . . 1 . . . . . . . . . 1 . . . . . . . . . . . . . . Botnet 1 | . . . . 1 . . . . . . . . . . . . . . . . . . . . . . . . Operators 1 | . . . . . . . . . . . . . . 1 . . . . . . . . . . . . . . Skim 3 | . 3 . . . . . . . . . . . . . . . . . . . . . . . . . . . Fabricators 8 | . . . . . . . . 1 . . . . . 3 . 2 . . . . . 1 . . . . 1 . Prioritize 1 | . . . . . . . . . . . . . . . . 1 . . . . . . . . . . . . Haulers 2 | . . . . . . . . . . . . . . 1 . 1 . . . . . . . . . . . . Recompile 5 | . . . . . . . . 1 . . . . . 2 . . . . . . . 1 . . . . 1 . Repair Stations 2 | . . . . . . . . . . . . . . 1 . 1 . . . . . . . . . . . . Mechanics 2 | . . . . . . . . . . . . . . 1 . 1 . . . . . . . . . . . . Recycling Units 2 | . 2 . . . . . . . . . . . . . . . . . . . . . . . . . . . Tunnel 2 | . 2 . . . . . . . . . . . . . . . . . . . . . . . . . . . Scanalyzers . | . . . . . . . . . . . . . . . . . . . . . . . . . . . . . Garrison Access 4 | . . . . 1 . . . . . . . 1 . . . 1 . 1 . . . . . . . . . . Redirect 1 | . . . . . . . . . . . . . . . . 1 . . . . . . . . . . . . Reprogram 2 | . . . . . . . . . . . . 1 . . . . . 1 . . . . . . . . . . Watchers 1 | . . . . 1 . . . . . . . . . . . . . . . . . . . . . . . . Data Cores Recovered 3 | . . . 1 . . . . . . . . . . . . 1 . 1 . . . . . . . . . . Used 2 | . . . . . . . . . . . . . . . . 1 . 1 . . . . . . . . . . Hacking Detections 82 | . 5 . 10 9 4 5 . 7 5 . . 10 1 5 . 5 1 2 2 . . 6 . . . . 1 4 Full Trace Events 12 | . . . 3 2 4 . . . . . . . . . . . . 1 . . . 2 . . . . . . Feedback Events 1 | . . . 1 . . . . . . . . . . . . . . . . . . . . . . . . . Corruption 1 | . . . 1 . . . . . . . . . . . . . . . . . . . . . . . . . Feedback Blocked . | . . . . . . . . . . . . . . . . . . . . . . . . . . . . . Robot Schematics Acquired 2 | . 2 . . . . . . . . . . . . . . . . . . . . . . . . . . . Robots Built . | . . . . . . . . . . . . . . . . . . . . . . . . . . . . . Authchips . | . . . . . . . . . . . . . . . . . . . . . . . . . . . . . Time . | . . . . . . . . . . . . . . . . . . . . . . . . . . . . . Total Robot Build Rating . | . . . . . . . . . . . . . . . . . . . . . . . . . . . . . Part Schematics Acquired 20 | . 4 . 4 3 . 2 1 2 2 . . . . . . . . 1 . . . 1 . . . . . . Parts Built 4 | . . . . . . . . 1 . . . . . . . 2 . . . . . . . . . . 1 . Authchips 4 | . . . . . . . . 1 . . . . . . . 2 . . . . . . . . . . 1 . Time 304 | . . . . . . . . 76 . . . . . . . 76 . . . . . . . . . . 152 . Total Part Build Rating 20 | . . . . . . . . 5 . . . . . . . 10 . . . . . . . . . . 5 . Parts Repaired 1 | . . . 1 . . . . . . . . . . . . . . . . . . . . . . . . . Time 32 | . . . 32 . . . . . . . . . . . . . . . . . . . . . . . . . Parts Recycled . | . . . . . . . . . . . . . . . . . . . . . . . . . . . . . Recycled Matter . | . . . . . . . . . . . . . . . . . . . . . . . . . . . . . Retrieved Matter . | . . . . . . . . . . . . . . . . . . . . . . . . . . . . . Retrieved Components . | . . . . . . . . . . . . . . . . . . . . . . . . . . . . . Parts Scanalyzed 8 | . . . 4 . . . . 2 . . . . . . . . . 2 . . . . . . . . . . Part Schematics Acquired 7 | . . . 4 . . . . 2 . . . . . . . . . 1 . . . . . . . . . . Parts Damaged 1 | . . . . . . . . 1 . . . . . . . . . . . . . . . . . . . . Bothacking | -11 -10 -10 -9 -9 -9 -9 -9 -6 -6 -6 -6 -6 -6 -5 -5 -5 -5 -5 -5 -4 -4 -4 -4 -4 -4 -3 -3 -3 ------------ Run | Yrd Mat Min Mat Sto Gar Rec Scr Fac Ext Cet Arc Hub Gar Fac Was Fac Gar Fac Gar Fac Was Fac Upp Upp War Pro Res Qua Used RIF Installer 4 | . . . . . . . . . . . . . 2 . . . 1 . 1 . . . . . . . . . Command Fork 1 | . . . . . . . . . . . . . . . . . 1 . . . . . . . . . . . Patrol Navigation 1 | . . . . . . . . . . . . . . . . . . . 1 . . . . . . . . . Program Shield 1 | . . . . . . . . . . . . . 1 . . . . . . . . . . . . . . . Robots Hacked 24 | . . . . . . . 4 . . . . . . . 6 1 . 2 2 1 4 4 . . . . . . Non-combat 10 | . . . . . . . . . . . . . . . . 1 . 2 2 1 . 4 . . . . . . Combat 14 | . . . . . . . 4 . . . . . . . 6 . . . . . 4 . . . . . . . Robot Hacks Applied 28 | . . . . . . . 4 . . . . . . . 7 2 . 4 2 1 4 4 . . . . . . parse_system 5 | . . . . . . . 4 . . . . . . . 1 . . . . . . . . . . . . . find_chute 1 | . . . . . . . . . . . . . . . . . . . . 1 . . . . . . . . find_fabricator 2 | . . . . . . . . . . . . . . . . 1 . 1 . . . . . . . . . . drop_inventory 5 | . . . . . . . . . . . . . . . . 1 . 2 . . . 2 . . . . . . locate_stockpiles 1 | . . . . . . . . . . . . . . . . . . 1 . . . . . . . . . . ignore_parts 1 | . . . . . . . . . . . . . . . . . . . . . . 1 . . . . . . ignore_targets 10 | . . . . . . . . . . . . . . . 6 . . . . . 4 . . . . . . . formatsys_low 3 | . . . . . . . . . . . . . . . . . . . 2 . . 1 . . . . . . Relay Couplers Released 53 | . . . . . 11 . . . . . . 2 14 . . . 13 . 10 . . . . . . . 2 1 Machine Destruction 50 | . . . . . 8 . . . . . . 2 14 . . . 13 . 10 . . . . . . . 2 1 Programmers 3 | . . . . . 3 . . . . . . . . . . . . . . . . . . . . . . . Attached 7 | . . . . . . . . . . . . . 2 . 1 . 1 1 1 . 1 . . . . . . . Fabnet Peak Effective % . | . . . . . . . . . . . . . . . . . . . . . . . . . . . . . Robots Rewired 35 | . . . . . 3 . . . 13 . . . 2 . . . 2 . 10 . . . 4 1 . . . . Allies Hacked 3 | . . . . . . . . . . . . 1 . . . . . . . . . 1 . . 1 . . . Hacks Repelled . | . . . . . . . . . . . . . . . . . . . . . . . . . . . . . Allies | -11 -10 -10 -9 -9 -9 -9 -9 -6 -6 -6 -6 -6 -6 -5 -5 -5 -5 -5 -5 -4 -4 -4 -4 -4 -4 -3 -3 -3 -------- Run | Yrd Mat Min Mat Sto Gar Rec Scr Fac Ext Cet Arc Hub Gar Fac Was Fac Gar Fac Gar Fac Was Fac Upp Upp War Pro Res Qua Total Allies 131 | . . . . 2 3 . . . 30 5 . 16 4 . 20 . 2 9 13 . . 16 4 1 . . 6 . Largest Group 25 | . . . . 2 4 . . . 24 25 23 20 9 9 19 15 3 6 14 8 . 6 6 4 3 . 6 5 Highest-Rated Group 1094 | . . . . 62 140 . . . 742 1094 1074 768 249 249 702 549 100 60 501 501 . 86 188 188 141 . 60 50 Highest-Rated Ally 159 | . . . . 31 39 . . . 159 159 159 96 80 80 50 46 46 12 119 119 . 36 47 47 47 . 10 10 Initial Warlord ECA Mod 12 | . . . . . . 6 6 . . . . . . . . . . . . . . . . . . . . . Total Orders 20 | . . . . . . . . . 3 . . 2 . . . . . . 8 2 . 1 1 . 3 . . . STAY 4 | . . . . . . . . . 2 . . 2 . . . . . . . . . . . . . . . . ROAM 3 | . . . . . . . . . . . . . . . . . . . . . . . . . 3 . . . FOLLOW 2 | . . . . . . . . . 1 . . . . . . . . . 1 . . . . . . . . . AID 11 | . . . . . . . . . . . . . . . . . . . 7 2 . 1 1 . . . . . Ally Attacks 1338 | . . . . 37 55 . . . 139 59 35 173 69 69 200 121 5 33 100 53 . 130 13 24 4 . 19 . Total Damage 28024 | . . . . 555 713 . . . 1970 1419 682 3438 937 1248 4183 3114 174 333 3352 3049 . 1641 193 758 40 . 225 . Kills 226 | . . . . 14 13 . . . 18 5 3 40 18 13 5 25 . 2 23 15 . 20 1 8 . . 3 . Allies Corrupted 8 | . . . . . . . . . . . . 4 . 1 . . . . 1 . . 2 . . . . . . Allies Melted 2 | . . . . . . . . . . . . 1 . . . . . . . . . . . . 1 . . . Intel | -11 -10 -10 -9 -9 -9 -9 -9 -6 -6 -6 -6 -6 -6 -5 -5 -5 -5 -5 -5 -4 -4 -4 -4 -4 -4 -3 -3 -3 ------- Run | Yrd Mat Min Mat Sto Gar Rec Scr Fac Ext Cet Arc Hub Gar Fac Was Fac Gar Fac Gar Fac Was Fac Upp Upp War Pro Res Qua Active Infowar (turns) 8165 | . . . . . 9 . 669 626 1048 . . . . 334 . 10 3 . . . . . 1023 1183 2114 . 888 258 Optics 150 | . . . . . . . 110 40 . . . . . . . . . . . . . . . . . . . . Sensors 1654 | . . . . . . . . 606 1048 . . . . . . . . . . . . . . . . . . . IFF 5227 | . . . . . . . . . . . . . . . . . . . . . . . 1023 1183 2114 . 729 178 Structural 2731 | . . . . . . . 559 76 743 . . . . 334 . 9 3 . . . . . . . . . 886 121 Seismic 9 | . . . . . 9 . . . . . . . . . . . . . . . . . . . . . . . ECM 1 | . . . . . . . . . . . . . . . . 1 . . . . . . . . . . . . Robot Analysis Total 8 | . . . . . . . 7 . 1 . . . . . . . . . . . . . . . . . . . Derelict Logs Recovered 4 | . . 2 . . . . . . . . . . . . . . . . . . . . 2 . . . . . Drone Launches . | . . . . . . . . . . . . . . . . . . . . . . . . . . . . . Drone Recoveries . | . . . . . . . . . . . . . . . . . . . . . . . . . . . . . Exploration | -11 -10 -10 -9 -9 -9 -9 -9 -6 -6 -6 -6 -6 -6 -5 -5 -5 -5 -5 -5 -4 -4 -4 -4 -4 -4 -3 -3 -3 ------------- Run | Yrd Mat Min Mat Sto Gar Rec Scr Fac Ext Cet Arc Hub Gar Fac Was Fac Gar Fac Gar Fac Was Fac Upp Upp War Pro Res Qua Turns Passed 41807 | 277 3528 1500 1756 2066 2345 1809 4256 626 1602 680 658 1833 1463 915 689 1014 2479 639 1771 285 138 2172 1025 1191 2200 1033 890 967 Spaces Moved 19104 | 121 1240 418 573 695 835 709 2452 1516 1088 257 277 1002 759 499 332 546 1196 297 850 153 81 848 291 470 178 318 474 629 Core 5 | 5 . . . . . . . . . . . . . . . . . . . . . . . . . . . . Treads 13952 | 116 1240 418 573 695 835 709 1370 . 17 71 277 1002 759 499 332 546 1196 297 850 153 81 679 291 470 178 298 . . Legs . | . . . . . . . . . . . . . . . . . . . . . . . . . . . . . Wheels 2434 | . . . . . . . 605 . 351 186 . . . . . . . . . . . 169 . . . 20 474 629 Hover . | . . . . . . . . . . . . . . . . . . . . . . . . . . . . . Flight 2713 | . . . . . . . 477 1516 720 . . . . . . . . . . . . . . . . . . . Fastest Speed 28 | 50 160 320 240 240 240 240 34 28 28 130 160 155 163 160 160 160 155 155 155 160 160 160 243 242 242 120 120 120 Average Speed 173 | 155 257 320 240 240 240 240 171 28 72 153 160 160 163 160 160 160 161 155 159 160 160 197 300 242 242 236 131 132 Slowest Speed 395 | 160 320 320 240 240 240 240 240 31 190 160 160 163 245 160 160 160 235 155 160 160 160 395 325 243 243 243 135 138 Overloaded Moves . | . . . . . . . . . . . . . . . . . . . . . . . . . . . . . Propulsion Burnouts . | . . . . . . . . . . . . . . . . . . . . . . . . . . . . . Robots Hopped 5 | . . . . . . . . 2 3 . . . . . . . . . . . . . . . . . . . Potential Cave-ins 18 | . . . . . . . 7 . 9 . . . . . . . . . . . . . 2 . . . . . Cave-ins Triggered . | . . . . . . . . . . . . . . . . . . . . . . . . . . . . . Exploration Rate (%) 60 | 7 98 77 53 93 96 97 93 26 87 68 93 81 88 13 88 21 91 8 95 10 86 27 49 65 17 49 14 64 Regions Visited 28 Branch Regions 13 Pre-discovered Areas 7 | . 2 . . . . . 5 . . . . . . . . . . . . . . . . . . . . . Known Exits Taken 11 | . . . . 1 . . . 1 . . . 1 . . . 1 . 1 . . . 1 1 1 1 1 1 . Unknown Exits Taken 9 | 1 1 1 1 . . 1 1 . 1 1 1 . . . . . . . . . . . . . . . . . Scrap Searched 11 | . . . . . . . 5 . . . . . . . . . . . . . . . 1 4 . 1 . . Spaces Dug 165 | . . 23 . . 4 . 45 22 11 13 . 8 7 3 . . 2 . . . . 5 1 3 3 9 5 1 Terrain Destroyed 853 | . . 54 7 . 4 . 37 22 12 36 7 167 8 27 2 19 96 16 11 1 . 144 35 25 8 37 15 63 Melee 43 | . . . . . 4 . . 19 . 13 . . 7 . . . . . . . . . . . . . . . Projectile 266 | . . . . . . . . . 1 1 7 17 1 26 2 19 27 16 10 . . 64 12 10 8 28 15 2 AOE 477 | . . 54 7 . . . . . . 22 . 150 . . . . 68 . . . . 77 23 15 . . . 61 Terrain Rammed . | . . . . . . . . . . . . . . . . . . . . . . . . . . . . . Walls Destroyed . | . . . . . . . . . . . . . . . . . . . . . . . . . . . . . Machines Disabled . | . . . . . . . . . . . . . . . . . . . . . . . . . . . . . Actions | -11 -10 -10 -9 -9 -9 -9 -9 -6 -6 -6 -6 -6 -6 -5 -5 -5 -5 -5 -5 -4 -4 -4 -4 -4 -4 -3 -3 -3 --------- Run | Yrd Mat Min Mat Sto Gar Rec Scr Fac Ext Cet Arc Hub Gar Fac Was Fac Gar Fac Gar Fac Was Fac Upp Upp War Pro Res Qua Total 25168 | 169 1444 516 800 920 1020 753 2514 1645 1795 513 414 1156 880 558 452 634 1494 382 1105 175 89 1070 381 501 1923 447 693 725 Wait 3302 | 8 68 41 64 52 2 . 1 54 498 196 83 94 15 4 70 34 42 10 30 . . 5 4 . 1733 6 149 39 Move 19067 | 120 1239 417 572 694 832 708 2451 1511 1081 256 276 1001 758 499 331 546 1195 296 849 153 80 847 290 469 177 317 473 629 Hop 5 | . . . . . . . . 2 3 . . . . . . . . . . . . . . . . . . . Pick Up 274 | 9 29 9 29 17 8 2 6 5 30 13 2 2 4 8 6 4 29 6 7 3 1 19 3 3 . 7 10 3 Fast Attach 106 | 6 2 . 3 1 . . 5 12 6 1 6 2 8 . . 1 14 3 5 1 . 13 2 2 . 7 4 2 Attach 73 | 1 1 3 2 1 2 2 3 4 1 4 1 1 2 2 . 2 15 2 3 2 . 10 1 . 2 1 4 1 Detach 10 | . . . . . . . 2 3 . . 1 . 1 1 . . . . . 1 . 1 . . . . . . Swap 387 | . 19 6 15 37 20 3 8 11 29 6 3 15 14 10 11 19 28 14 18 4 2 37 7 7 . 10 22 12 Drop 317 | . 16 5 37 32 8 7 28 11 15 18 6 7 4 8 8 5 33 7 19 2 1 14 2 3 . 7 11 3 Fire 1173 | 25 67 31 78 77 44 29 8 8 44 6 36 34 48 26 26 22 115 44 74 9 5 121 35 10 11 92 20 28 Melee 94 | . . . . 8 39 . 2 24 . 13 . . 8 . . . . . . . . . . . . . . . Ram 1 | . . . . . . . . . . . . . . . . . . . . . . 1 . . . . . . Kick . | . . . . . . . . . . . . . . . . . . . . . . . . . . . . . Crush 11 | . 3 4 . 1 . 2 . . . . . . . . . 1 . . . . . . . . . . . . Escape Stasis 47 | . . . . . 18 . . . 16 . . . . . . . . . 3 . . 2 . . . . . 8 Rewire 292 | . . . . . 47 . . . 72 . . . 18 . . . 23 . 88 . . . 37 7 . . . . Trap . | . . . . . . . . . . . . . . . . . . . . . . . . . . . . . Miscellaneous 9 | . . . . . . . . . . . . . . . . . . . 9 . . . . . . . . . Route ------- -11/Scrapyard -10/Materials (discovered 6 exits: *Mat x3 / [*Min x2] / [*Sub]) -10/Mines (discovered 2 exits: *Mat x2) -9/Materials (discovered 3 exits: *Mat x2 / *Sto) -9/Storage (discovered 2 exits: *Mat / Gar) -9/Garrison (discovered 3 exits: *Rec x3) -9/Recycling (discovered 2 exits: [*Fac] / *Scr) -9/Scraptown (discovered 2 exits: *Fac x2) -6/Factory (discovered 8 exits: Fac x4 / *Low x2 / *Ext x2) -6/Extension (discovered 3 exits: *Fac x2 / *Cet) -6/Cetus (discovered 2 exits: *Fac / [*Arc]) -6/Archives (discovered 3 exits: *Fac / *Hub x2) -6/Hub_04(d) (discovered 5 exits: *Fac x4 / Gar) -6/Garrison (discovered 3 exits: *Fac x3) -5/Factory -5/Waste -5/Factory (discovered 2 exits: Gar / Gar) -5/Garrison (discovered 3 exits: *Fac x3) -5/Factory -5/Garrison (discovered 3 exits: *Fac x3) -4/Factory (discovered 3 exits: Res x3) -4/Waste -4/Factory (discovered 6 exits: Res x4 / *Upp x2) -4/Upper Caves -4/Upper Caves (discovered 2 exits: Res / *War) -4/Warlord -3/Proximity Caves -3/Research (discovered 2 exits: [*Res] / *Qua) -3/Quarantine History --------- Turn | Location | Event 5 | -11/Scrapyard | Discovered new exit (range 14) 278 | -11/Scrapyard | Entered Materials 298 | -10/Materials | Discovered new exit (range 15) 317 | -10/Materials | Build established: Mutant 692 | -10/Materials | Discovered new exit (range 6) 1325 | -10/Materials | Discovered new exit (range 15) 1913 | -10/Materials | Discovered new exit (range 6) 2603 | -10/Materials | Discovered new exit (range 12) 2693 | -10/Materials | Discovered new exit (range 9) 3806 | -10/Materials | Entered Mines 3895 | -10/Mines | Met a Derelict bent on vengeance 3902 | -10/Mines | Core integrity fell below 50% 4244 | -10/Mines | Assembled infested the area 4286 | -10/Mines | Core integrity fell below 20% 4386 | -10/Mines | Learned Materials stockpile data 4389 | -10/Mines | Discovered new exit (range 11) 4530 | -10/Mines | Discovered new exit (range 11) 4658 | -10/Mines | Found a hidden stash of uninstalled traps 4733 | -10/Mines | Learned location of 1 exit from Materials 4750 | -10/Mines | Received a Rocket Launcher from a helpful Derelict 5306 | -10/Mines | Entered Materials 5306 | -9/Materials | Evolved 2 slots: Propulsion x1, Weapon x1 5307 | -9/Materials | Identified exit to Materials 5750 | -9/Materials | Build established: Scavenger-Tank 6059 | -9/Materials | Discovered exit to Materials (range 3) 6439 | -9/Materials | Repaired Hvy. Assault Rifle 6964 | -9/Materials | Discovered new exit (range 4) 7062 | -9/Materials | Entered Storage 7147 | -9/Storage | Identified exit to Garrison 7178 | -9/Storage | Garrison activated, responded to threat 7976 | -9/Storage | Discovered exit to Materials (range 5) 8231 | -9/Storage | Found Prototype Protection 8231 | -9/Storage | Identified Lgt. Regenerative Plating 8505 | -9/Storage | Met a pair of Derelict thieves 8775 | -9/Storage | Garrison activated, responded to threat 8809 | -9/Storage | Build established: Tank 9128 | -9/Storage | Entered Garrison 9128 | -9/Garrison | Accompanied by 1 ally 9297 | -9/Garrison | Triggered checkpoint 9648 | -9/Garrison | Core integrity fell below 50% 9674 | -9/Garrison | Triggered checkpoint 9696 | -9/Garrison | Triggered checkpoint 9802 | -9/Garrison | Discovered new exit (range 10) 9826 | -9/Garrison | Triggered checkpoint 9864 | -9/Garrison | Garrison Relay disabled 10035 | -9/Garrison | Attempted to access garrison exit controls, blocked by remote lockdown 10317 | -9/Garrison | Discovered new exit (range 10) 10367 | -9/Garrison | Lost 3 allies 10917 | -9/Garrison | Garrison Relay disabled 10943 | -9/Garrison | Discovered new exit (range 5) 10977 | -9/Garrison | Build established: Mutant 10982 | -9/Garrison | Triggered checkpoint 11027 | -9/Garrison | Attempted to access garrison exit controls, blocked by remote lockdown 11192 | -9/Garrison | System corruption reached 10% 11286 | -9/Garrison | Build established: Tank 11473 | -9/Garrison | Entered Recycling 12011 | -9/Recycling | Discovered new exit (range 15) 12025 | -9/Recycling | Build established: Scavenger-Tank 13223 | -9/Recycling | Scanned before Scraplab entrance 13258 | -9/Recycling | Entered Scraplab 13277 | -9/Recycling | Discovered new exit (range 2) 13282 | -9/Recycling | Entered Scraptown 13282 | -9/Scraptown | System corruption cleaned by C-Scrubber 13533 | -9/Scraptown | Build established: Mutant 13897 | -9/Scraptown | Discovered new exit (range 11) 14010 | -9/Scraptown | Heard Great Nut preacher, LISTEN AND RECITE! 14384 | -9/Scraptown | Visited TADAMA 14442 | -9/Scraptown | Visited Fellowship of the Rings 14531 | -9/Scraptown | Visited Cyclists 14572 | -9/Scraptown | Visited Symbiants 14639 | -9/Scraptown | Visited Cave Peace 14819 | -9/Scraptown | Visited Awakened 14895 | -9/Scraptown | Visited IN-MT5's Study 15087 | -9/Scraptown | Visited UFD Registry 15087 | -9/Scraptown | Registered with UFD as "Flashmaster" 15167 | -9/Scraptown | Visited Modified Component R&D 15279 | -9/Scraptown | Visited Analyses Database 15339 | -9/Scraptown | Visited Derelict Rescue Squad 15363 | -9/Scraptown | Found DRS Beacon 15415 | -9/Scraptown | Visited Cartography Club 15470 | -9/Scraptown | Visited Scrapoid Research Area 15525 | -9/Scraptown | Visited Scrap Suit Storage 15559 | -9/Scraptown | Visited Infowarlord's Domain 15840 | -9/Scraptown | Visited Science Guys 15919 | -9/Scraptown | Visited Science Testing Area 15955 | -9/Scraptown | Visited LU-1G1's Boring Crew 16324 | -9/Scraptown | Discovered new exit (range 3) 16631 | -9/Scraptown | Found Surveybot 17 Chip 16734 | -9/Scraptown | Learned location of Storage (-9) 16734 | -9/Scraptown | Learned location of Upper Caves (-4) 16734 | -9/Scraptown | Learned 16 Materials zone layouts 16734 | -9/Scraptown | Learned 12 Factory zone layouts 16734 | -9/Scraptown | Learned 16 Factory zone layouts 16734 | -9/Scraptown | Learned 20 Factory zone layouts 16734 | -9/Scraptown | Learned 16 Research zone layouts 16734 | -9/Scraptown | Learned 4 Recycling zone layouts 16734 | -9/Scraptown | Learned 24 Upper Caves zone layouts 16734 | -9/Scraptown | Learned 16 Proximity Caves zone layouts 16734 | -9/Scraptown | Learned 24 Proximity Caves zone layouts 16734 | -9/Scraptown | Learned location of 2 exits from Factory 16734 | -9/Scraptown | Learned location of 3 exits from Lower Caves 16734 | -9/Scraptown | Learned location of 2 exits from Upper Caves 16806 | -9/Scraptown | Found Deep Structural Scanner 17216 | -9/Scraptown | Entered Cyclist Reading Room 17456 | -9/Scraptown | Attacked by Scraptown defenders 17462 | -9/Scraptown | Found Prototype Special Weapon 17463 | -9/Scraptown | Identified LU-1G1's Laser Shovel 17476 | -9/Scraptown | Found Voltaic Drivehammer 17538 | -9/Scraptown | Entered Factory 17538 | -6/Factory | Evolved 6 slots: Propulsion x2, Utility x3, Weapon x1 17539 | -6/Factory | Identified exit to Factory 17540 | -6/Factory | Identified exit to Lower Caves 17541 | -6/Factory | Identified exit to Extension 17825 | -6/Factory | Build established: Sprinter 18086 | -6/Factory | Fabricated IN-MT5's Pitchfork "Insurrection"? 18164 | -6/Factory | Entered Extension 18309 | -6/Extension | Rescued a captive Derelict 18310 | -6/Extension | Rescued a captive Derelict 18436 | -6/Extension | Rescued a captive Derelict 18437 | -6/Extension | Rescued a captive Derelict 18494 | -6/Extension | Rescued a captive Derelict 18548 | -6/Extension | Rescued a captive Derelict 18549 | -6/Extension | Rescued a captive Derelict 18832 | -6/Extension | Reprogrammed and armed K-01 Serf 18836 | -6/Extension | Reprogrammed and armed K-01 Serf 18868 | -6/Extension | Reprogrammed and armed K-01 Serf 18895 | -6/Extension | Reprogrammed and armed K-01 Serf 18956 | -6/Extension | Reprogrammed and armed K-01 Serf 18969 | -6/Extension | Spotted B-75 Beast 18976 | -6/Extension | Allies destroyed B-75 Beast 18977 | -6/Extension | Discovered exit to Factory (range 18) 18981 | -6/Extension | Spotted B-75 Beast 18995 | -6/Extension | Allies destroyed B-75 Beast 19066 | -6/Extension | Reprogrammed and armed K-01 Serf 19238 | -6/Extension | Rescued a captive Derelict 19239 | -6/Extension | Rescued a captive Derelict 19259 | -6/Extension | Rescued a captive Derelict 19325 | -6/Extension | Rescued A7 19503 | -6/Extension | Build established: Scavenger-Gunner 19653 | -6/Extension | Discovered exit to Factory (range 10) 19655 | -6/Extension | Discovered new exit (range 6) 19766 | -6/Extension | Entered Cetus 19766 | -6/Cetus | Accompanied by 24 allies (A7) 19771 | -6/Cetus | Acquired a Cetus Manufacturing Module code from A7 19955 | -6/Cetus | Spotted Cetus Guard 19955 | -6/Cetus | Spotted Cetus Guard 19958 | -6/Cetus | Build established: Commander-Gunner 19958 | -6/Cetus | Spotted Cetus Guard 19958 | -6/Cetus | Spotted Cetus Guard 19965 | -6/Cetus | Allies destroyed Cetus Guard 19974 | -6/Cetus | Destroyed Cetus Guard 19977 | -6/Cetus | Destroyed Cetus Guard 19983 | -6/Cetus | Destroyed Cetus Guard 20054 | -6/Cetus | Started Cetus Manufacturing Module 20066 | -6/Cetus | Escorted A7 to Cetus Mainframe 20079 | -6/Cetus | Manufactured an Enhanced Grunt 20104 | -6/Cetus | Manufactured an Enhanced Grunt 20109 | -6/Cetus | Discovered new exit (range 16) 20129 | -6/Cetus | Manufactured an Enhanced Grunt 20136 | -6/Cetus | Spotted Cetus Guard 20136 | -6/Cetus | Spotted Cetus Guard 20139 | -6/Cetus | Spotted Cetus Guard 20139 | -6/Cetus | Spotted Cetus Guard 20152 | -6/Cetus | Allies destroyed Cetus Guard 20152 | -6/Cetus | Allies destroyed Cetus Guard 20153 | -6/Cetus | Allies destroyed Cetus Guard 20153 | -6/Cetus | Destroyed Cetus Guard 20154 | -6/Cetus | Manufactured an Enhanced Grunt 20163 | -6/Cetus | Discovered exit to Factory (range 15) 20176 | -6/Cetus | Met Revision 17 20179 | -6/Cetus | Manufactured an Enhanced Grunt 20179 | -6/Cetus | Lost 3 allies 20285 | -6/Cetus | Build established: Commander-Tank 20446 | -6/Cetus | Entered Archives 20446 | -6/Archives | Accompanied by 24 allies (A7) 20451 | -6/Archives | Received a hacking code to weaken MAIN.C 20520 | -6/Archives | Discovered new exit (range 16) 20534 | -6/Archives | Lost 7 allies 20633 | -6/Archives | Discovered exit to Factory (range 16) 20747 | -6/Archives | Discovered new exit (range 16) 21104 | -6/Archives | Entered Hub_04(d) 21104 | -6/Hub_04(d) | Accompanied by 16 allies 21279 | -6/Hub_04(d) | Garrison activated, responded to threat 21340 | -6/Hub_04(d) | Destroyed 9 combat bots 21351 | -6/Hub_04(d) | Lost 6 allies 21607 | -6/Hub_04(d) | Build established: Scavenger-Tank 21656 | -6/Hub_04(d) | Reprogrammed and armed K-01 Serf 21663 | -6/Hub_04(d) | Reprogrammed and armed K-01 Serf 21679 | -6/Hub_04(d) | Reprogrammed and armed K-01 Serf 21690 | -6/Hub_04(d) | Reprogrammed and armed K-01 Serf 21796 | -6/Hub_04(d) | Reprogrammed and armed K-01 Serf 21828 | -6/Hub_04(d) | Reprogrammed and armed K-01 Serf 21836 | -6/Hub_04(d) | Reprogrammed and armed K-01 Serf 21847 | -6/Hub_04(d) | Reprogrammed and armed K-01 Serf 21850 | -6/Hub_04(d) | Discovered exit to Factory (range 10) 21866 | -6/Hub_04(d) | Reprogrammed and armed K-01 Serf 21868 | -6/Hub_04(d) | Reprogrammed and armed K-01 Serf 21874 | -6/Hub_04(d) | Discovered exit to Factory (range 11) 22035 | -6/Hub_04(d) | Discovered exit to Factory (range 8) 22054 | -6/Hub_04(d) | Reprogrammed and armed K-01 Serf 22138 | -6/Hub_04(d) | Identified exit to Garrison 22202 | -6/Hub_04(d) | Reprogrammed and armed K-01 Serf 22230 | -6/Hub_04(d) | Reprogrammed and armed K-01 Serf 22239 | -6/Hub_04(d) | System corruption reached 10% 22277 | -6/Hub_04(d) | Lost 3 allies 22333 | -6/Hub_04(d) | Discovered exit to Factory (range 5) 22408 | -6/Hub_04(d) | Reprogrammed and armed K-01 Serf 22495 | -6/Hub_04(d) | Identified exit to Garrison 22786 | -6/Hub_04(d) | Network Hub disabled 22854 | -6/Hub_04(d) | First assault squad dispatched 22861 | -6/Hub_04(d) | Network Hub disabled 22912 | -6/Hub_04(d) | Lost 3 allies 22937 | -6/Hub_04(d) | Entered Garrison 22937 | -6/Garrison | Accompanied by 8 allies 22990 | -6/Garrison | Triggered checkpoint 23044 | -6/Garrison | Garrison Relay disabled 23157 | -6/Garrison | Triggered checkpoint 23165 | -6/Garrison | Triggered checkpoint 23211 | -6/Garrison | Triggered checkpoint 23245 | -6/Garrison | Triggered checkpoint 23305 | -6/Garrison | Triggered checkpoint 23336 | -6/Garrison | Garrison Relay disabled 23368 | -6/Garrison | Discovered exit to Factory (range 14) 23771 | -6/Garrison | Triggered checkpoint 23806 | -6/Garrison | Discovered exit to Factory (range 3) 23848 | -6/Garrison | Garrison Relay disabled 24156 | -6/Garrison | Installed Relay Interface Framework 24201 | -6/Garrison | Expanded RIF knowledge: Program Shield 24228 | -6/Garrison | Found embedded Infiltrators 24243 | -6/Garrison | Discovered exit to Factory (range 3) 24284 | -6/Garrison | Garrison Relay disabled 24384 | -6/Garrison | System corruption reached 30% 24400 | -6/Garrison | Entered Factory 24400 | -5/Factory | Accompanied by 9 allies 24400 | -5/Factory | Evolved 2 slots: Power x1, Propulsion x1 25184 | -5/Factory | P-70 Sage assimilated allied K-01 Serf 25282 | -5/Factory | Lost 3 allies 25315 | -5/Factory | Sucked down chute 25315 | -5/Factory | Entered Waste 25315 | -5/Waste | Met up with 1 ally sucked down the chute earlier 25384 | -5/Waste | Spotted C-40 Crusher 25406 | -5/Waste | Spotted C-40 Crusher 25408 | -5/Waste | Spotted C-40 Crusher 25414 | -5/Waste | Spotted C-40 Crusher 25419 | -5/Waste | Spotted C-40 Crusher 25430 | -5/Waste | Spotted C-40 Crusher 25558 | -5/Waste | Discovered new exit (range 15) 25632 | -5/Waste | Warlord forces began an assault 25664 | -5/Waste | Allies destroyed C-40 Crusher 25722 | -5/Waste | Allies destroyed C-40 Crusher 25869 | -5/Waste | Allies destroyed C-40 Crusher 25938 | -5/Waste | Destroyed C-40 Crusher 26004 | -5/Waste | Entered Factory 26004 | -5/Factory | Accompanied by 15 allies 26501 | -5/Factory | Identified exit to Garrison 26564 | -5/Factory | Lost 3 allies 26609 | -5/Factory | Garrison activated, responded to threat 26783 | -5/Factory | Fabricated IN-MT5's Pitchfork "Insurrection" (x1) 26827 | -5/Factory | Fabricated IN-MT5's Pitchfork "Insurrection"? 27017 | -5/Factory | Garrison activated, responded to threat 27018 | -5/Factory | Identified exit to Garrison 27018 | -5/Factory | Entered Garrison 27018 | -5/Garrison | Accompanied by 1 ally 27104 | -5/Garrison | Phase Generator disabled 27242 | -5/Garrison | Triggered checkpoint 27295 | -5/Garrison | Garrison Relay disabled 27438 | -5/Garrison | Triggered checkpoint 27440 | -5/Garrison | Spotted B-75 Beast 27443 | -5/Garrison | Triggered checkpoint 27448 | -5/Garrison | Triggered checkpoint 27454 | -5/Garrison | Destroyed B-75 Beast 27492 | -5/Garrison | Lost 3 allies 27524 | -5/Garrison | Triggered checkpoint 27563 | -5/Garrison | Destroyed 12 combat bots 27642 | -5/Garrison | Triggered checkpoint 27936 | -5/Garrison | Discovered new exit (range 13) 28280 | -5/Garrison | Discovered new exit (range 13) 28330 | -5/Garrison | Triggered checkpoint 28381 | -5/Garrison | Garrison Relay disabled 28383 | -5/Garrison | Garrison Relay disabled 28590 | -5/Garrison | Expanded RIF knowledge: Command Fork 28700 | -5/Garrison | Discovered new exit (range 12) 28728 | -5/Garrison | Triggered checkpoint 28973 | -5/Garrison | Spotted B-75 Beast 28994 | -5/Garrison | Core integrity fell below 50% 29031 | -5/Garrison | Lost 6 parts (1p2u3w) 29117 | -5/Garrison | Destroyed B-75 Beast 29167 | -5/Garrison | Found Relay Coupler [Proto] 29170 | -5/Garrison | Found Relay Coupler [Proto] 29172 | -5/Garrison | Found Relay Coupler [Proto] 29175 | -5/Garrison | Found Relay Coupler [Proto] 29450 | -5/Garrison | Build established: Bothacker-Tank 29497 | -5/Garrison | Entered Factory 29555 | -5/Factory | Garrison activated, responded to threat 29730 | -5/Factory | Identified exit to Garrison 29862 | -5/Factory | Lost 3 allies 29900 | -5/Factory | Reprogrammed and armed K-01 Serf 29951 | -5/Factory | Reprogrammed and armed K-01 Serf 29972 | -5/Factory | Reprogrammed and armed K-01 Serf 30013 | -5/Factory | Reprogrammed and armed K-01 Serf 30071 | -5/Factory | Reprogrammed and armed K-01 Serf 30077 | -5/Factory | Reprogrammed and armed K-01 Serf 30097 | -5/Factory | First assault squad dispatched 30136 | -5/Factory | Entered Garrison 30136 | -5/Garrison | Accompanied by 6 allies 30188 | -5/Garrison | Phase Generator disabled 30416 | -5/Garrison | Garrison Relay disabled 30427 | -5/Garrison | Triggered checkpoint 30489 | -5/Garrison | Destroyed 8 combat bots 30522 | -5/Garrison | Expanded RIF knowledge: Patrol Navigation 30883 | -5/Garrison | Spotted B-75 Beast 30916 | -5/Garrison | Allies destroyed B-75 Beast 30918 | -5/Garrison | Triggered checkpoint 31016 | -5/Garrison | Triggered checkpoint 31061 | -5/Garrison | Lost 3 allies 31106 | -5/Garrison | Triggered checkpoint 31151 | -5/Garrison | Garrison Relay disabled 31201 | -5/Garrison | Discovered new exit (range 10) 31321 | -5/Garrison | Core integrity fell below 20% 31362 | -5/Garrison | Triggered checkpoint 31397 | -5/Garrison | Discovered new exit (range 13) 31412 | -5/Garrison | Triggered checkpoint 31438 | -5/Garrison | Rescued a captive Derelict 31718 | -5/Garrison | Triggered checkpoint 31751 | -5/Garrison | Garrison Relay disabled 31781 | -5/Garrison | Discovered new exit (range 15) 31825 | -5/Garrison | Rewired Executioner 31833 | -5/Garrison | Rewired Executioner 31907 | -5/Garrison | Entered Factory 31907 | -4/Factory | Accompanied by 8 allies 31907 | -4/Factory | Evolved 2 slots: Utility x2 31908 | -4/Factory | Identified exit to Research 32139 | -4/Factory | P-70 Sage assimilated allied 13-553(l) 32157 | -4/Factory | First assault squad dispatched 32186 | -4/Factory | High security lockdown imminent 32192 | -4/Factory | Sucked down chute 32192 | -4/Factory | Entered Waste 32207 | -4/Waste | EMP discharged 32227 | -4/Waste | Spotted C-40 Crusher 32238 | -4/Waste | Spotted C-40 Crusher 32238 | -4/Waste | Spotted C-40 Crusher 32265 | -4/Waste | Spotted C-40 Crusher 32283 | -4/Waste | Spotted C-40 Crusher 32285 | -4/Waste | Spotted C-40 Crusher 32306 | -4/Waste | Discovered new exit (range 16) 32307 | -4/Waste | EMP discharged 32307 | -4/Waste | System corruption reached 10% 32330 | -4/Waste | Entered Factory 32398 | -4/Factory | Reprogrammed and armed K-01 Serf 32531 | -4/Factory | Reprogrammed and armed K-01 Serf 32595 | -4/Factory | Reprogrammed and armed K-01 Serf 32602 | -4/Factory | Reprogrammed and armed K-01 Serf 32629 | -4/Factory | Reprogrammed and armed K-01 Serf 32645 | -4/Factory | Reprogrammed and armed K-01 Serf 32651 | -4/Factory | Reprogrammed and armed K-01 Serf 33068 | -4/Factory | Reprogrammed and armed K-01 Serf 33080 | -4/Factory | First assault squad dispatched 33316 | -4/Factory | Reprogrammed and armed K-01 Serf 33322 | -4/Factory | Reprogrammed and armed K-01 Serf 33522 | -4/Factory | Lost 4 parts (1p2n1w) 33926 | -4/Factory | Destroyed 8 combat bots 33936 | -4/Factory | Lost 4 parts (1p1u2w) 33963 | -4/Factory | Found Prototype Launcher 33966 | -4/Factory | Found Prototype Launcher 33967 | -4/Factory | Identified Mni. Smartbomb Launcher (x2) 33971 | -4/Factory | Found Mni. Smartbomb Launcher 33975 | -4/Factory | Found Mni. Smartbomb Launcher 33979 | -4/Factory | Found Mni. Smartbomb Launcher 33993 | -4/Factory | Reprogrammed and armed K-01 Serf 34008 | -4/Factory | Reprogrammed and armed K-01 Serf 34022 | -4/Factory | Reprogrammed and armed K-01 Serf 34033 | -4/Factory | Reprogrammed and armed K-01 Serf 34056 | -4/Factory | Reprogrammed and armed K-01 Serf 34183 | -4/Factory | Identified exit to Upper Caves 34502 | -4/Factory | Entered Upper Caves 34502 | -4/Upper Caves | Accompanied by 6 allies 34503 | -4/Upper Caves | Identified exit to Upper Caves 34754 | -4/Upper Caves | Learned 4 Research zone layouts 34765 | -4/Upper Caves | P-70 Sage assimilated allied K-01 Serf 34788 | -4/Upper Caves | Build established: Scavenger-Tank 34874 | -4/Upper Caves | Attracted the attention of an 0b10 checkpoint 34919 | -4/Upper Caves | Destroyed 7 combat bots 35254 | -4/Upper Caves | Learned Research terminal intel 35418 | -4/Upper Caves | Build established: Bothacker-Tank 35422 | -4/Upper Caves | Attacked by a delusional Derelict stockpiling Unaware 35527 | -4/Upper Caves | Entered another Upper Caves area 35527 | -4/Upper Caves | Accompanied by 4 allies 35528 | -4/Upper Caves | Identified exit to Warlord 35529 | -4/Upper Caves | Attracted the attention of an 0b10 outpost 35689 | -4/Upper Caves | Attracted the attention of an 0b10 checkpoint 36108 | -4/Upper Caves | Build established: Scavenger-Tank 36718 | -4/Upper Caves | Entered Warlord 36718 | -4/Warlord | Accompanied by 3 allies 36719 | -4/Warlord | Identified exit to Proximity Caves 36801 | -4/Warlord | System corruption cleaned by Quarantine Array 38018 | -4/Warlord | Warlord's base attacked by MAIN.C 38368 | -4/Warlord | Warlord forces counterattacked 38693 | -4/Warlord | Warlord base infiltrated, sounded retreat 38754 | -4/Warlord | Spotted B-90 Cyclops 38794 | -4/Warlord | Spotted Executioner 38815 | -4/Warlord | Destroyed Executioner 38856 | -4/Warlord | Lost 3 parts (2n1w) 38918 | -4/Warlord | Spotted Executioner 38918 | -4/Warlord | Spotted Striker 38918 | -4/Warlord | Spotted Executioner 38918 | -4/Warlord | Entered Proximity Caves 38970 | -3/Proximity Caves | Attracted the attention of an 0b10 checkpoint 39122 | -3/Proximity Caves | Build established: Bothacker-Tank 39951 | -3/Proximity Caves | Entered Research 39951 | -3/Research | Evolved 2 slots: Utility x1, Weapon x1 39952 | -3/Research | Identified exit to Quarantine 39953 | -3/Research | Loaded intel: 24 terminal locations 40160 | -3/Research | Revision forces began assault on 0b10 40178 | -3/Research | Met up with Revision 17++ 40205 | -3/Research | Fabricated IN-MT5's Pitchfork "Insurrection" (x1) 40247 | -3/Research | Build established: Scavenger-Tank 40361 | -3/Research | Reprogrammed and armed K-01 Serf 40527 | -3/Research | Reprogrammed and armed K-01 Serf 40537 | -3/Research | Reprogrammed and armed K-01 Serf 40563 | -3/Research | Reprogrammed and armed K-01 Serf 40565 | -3/Research | Reprogrammed and armed K-01 Serf 40644 | -3/Research | Discovered new exit (range 8) 40660 | -3/Research | Research terminal network offline 40714 | -3/Research | Reprogrammed and armed K-01 Serf 40724 | -3/Research | Spotted Striker 40740 | -3/Research | Allies destroyed Striker 40772 | -3/Research | Lost 3 allies 40841 | -3/Research | Entered Quarantine 40841 | -3/Quarantine | Accompanied by 5 allies 40852 | -3/Quarantine | Identified exit to Garrison 40853 | -3/Quarantine | Cryocooling Duct disabled 40855 | -3/Quarantine | Cryocooling Duct disabled 40859 | -3/Quarantine | Cryocooling Duct disabled 40868 | -3/Quarantine | Ambient heat levels rising (+20) 40868 | -3/Quarantine | Non-combat units ordered to evacuate 40870 | -3/Quarantine | Ambient heat levels rising (+20) 40870 | -3/Quarantine | Combat units ordered to evacuate 40874 | -3/Quarantine | Ambient heat levels rising (+20) 40959 | -3/Quarantine | Lost 4 allies 40970 | -3/Quarantine | Quarantine Guard activated 41077 | -3/Quarantine | Spotted Quarantine Guard 41145 | -3/Quarantine | Spotted Quarantine Guard 41151 | -3/Quarantine | Destroyed Quarantine Guard 41171 | -3/Quarantine | Destroyed Quarantine Guard 41280 | -3/Quarantine | Spotted Quarantine Guard 41302 | -3/Quarantine | Destroyed Quarantine Guard 41429 | -3/Quarantine | Spotted Quarantine Guard 41445 | -3/Quarantine | Destroyed Quarantine Guard 41733 | -3/Quarantine | Spotted Quarantine Guard 41741 | -3/Quarantine | Destroyed Quarantine Guard 41781 | -3/Quarantine | Spotted Quarantine Guard 41782 | -3/Quarantine | Spotted Quarantine Guard 41792 | -3/Quarantine | Spotted Quarantine Guard 41808 | -3/Quarantine | Self-destructed Last Messages --------------- 41790_ Acquired 2 matter. 41790_ The unstable cave ceiling collapses. 41790_ Coil Gun destroyed. 41793_ The unstable cave ceiling collapses. 41793_ Dropped Adv. Energy Well. 41793_ Acquired Adv. Energy Well. 41795_ Repair Station disabled. 41795_ Backup Plating III tumbles out of repair station. 41798_ KE Penetrator destroyed. 41801_ Adv. Heat Sink destroyed. 41801_ Knocked back. 41802_ The unstable cave ceiling collapses. 41802_ System corrupted: Imp. Proton Missile Launcher failed to launch. 41803_ System corrupted: Component data lost. 41804_ Lyr. Heavy Armor Plating destroyed. 41805_ Adv. Shield Generator destroyed. 41805_ Matter Neutralizer destroyed. 41805_ Knocked back. 41807_ Arm. Wheel destroyed. 41807_ Knocked back. Map ----- +----------------------------------------------------+ | ??????????????#"" % #???????????????????? | | ??????????????#"" # #######?????????????? | | ??????????????#" % #????????????? | | ?????????????##" #????????????? | | ?????????????# " % #????????????? | | ?????????????# " %% #????????????? | | ?????????????### ######% #????????????? | | ??????????????# #?????? #????????????? | | ??????????????## #?????????+????????????? | | ???????????????# # # #??????????????????????? | | ???????????????# # #??????????????????????? | | ???????????????# # # "########?????????????????? | | ???????????????##### +?????????????????? | | ???????????????????# #?????????????????? | | ????????????######## """""""""%#?????????????????? | | ???????????# + """ """ #?????????????????? | | ???????????# ####### #?????????????????? | | ??????????## ###???# % #?????????????????? | | ????????#### ## #??# #?????????????????? | | ???????## ##########+####?????????????????? | | ???????# #???????# #????????????????????? | | ??????## ####????# #????????????????????? | | ??????# ## #????# #????????????????????? | | ??????# %#????# #????????????????????? | | ??????# %"#?####%#????????????????????? | | ??????## % ###;@# #????????????????????? | | ??# "" % % #????????????????????? | | % % %=% +????????????????????? | | ??# "### ! % %%#????????????????????? | | ????????# ## ;#######????????????????????? | | ????????#???##; /;;;"??????????????????????????? | | ????????????#!! ^ ?????????????????????????? | | ??????????? /Y "" #????????????????????????? | | ??????????### "R """ #????????????????????????? | | ????????????# """ """ #????????????????????????? | | ????????????# "" """ #????????????????????????? | | ????????????# #????????????????????????? | | ?????????????? ??#????????????????????????? | | ???????????????########??????????????????????????? | | | | | | | | | | | | | | | | | | | | | | | +----------------------------------------------------+ Best States ------------- Heat Dissipation 98 Coolant Potential 100 Energy Generation 43 Energy Capacity 880 Matter Stores 300 Matter Capacity 300 Sight Range 20 Robot Scan Range 16 Terrain Scan Density 10 Armor Coverage 1200 Resistance: KI 20 Resistance: TH 15 Core Shielding 20 Melee Speed Boost 20 Evasion (%) 73 Target Analysis 8 Core Analysis 6 Recoil Reduction 6 Offensive Hacking 12 Relay Coupler Types 1 Relay Coupler Value 36 Authchip Count 2 Item Schematics ----------------- Lgt. Treads | -10/Materials | Hacked Lgt. Assault Rifle | -10/Materials | Hacked Lgt. Ion Engine | -10/Materials | Hacked Lgt. Armor Plating | -10/Materials | Hacked Cooling System | -9/Materials | Scanalyzed Autogun | -9/Materials | Scanalyzed Beamcaster | -9/Materials | Scanalyzed Katana | -9/Materials | Scanalyzed Arm. Wheel | -9/Storage | Hacked Launcher Guidance Computer | -9/Storage | Hacked Reaction Control System | -9/Storage | Hacked Lyr. Light Armor Plating | -9/Recycling | Hacked Shield Generator | -9/Recycling | Hacked IN-MT5's Pitchfork "Insurrection" | -9/Scraptown | Archive CPS Tube | -6/Factory | Scanalyzed Cld. Cesium-ion Thruster | -6/Factory | Scanalyzed Graphene Brace | -6/Extension | Hacked Adv. Reaction Control System | -6/Extension | Hacked Lyr. Heavy Armor Plating | -5/Factory | Scanalyzed Arm. Heavy Treads | -4/Factory | Hacked Robot Schematics ------------------ M-13 Machinist | -10/Materials | Hacked S-10 Pest | -10/Materials | Hacked Fabricated ------------ IN-MT5's Pitchfork "Insurrection" | x1 | -6/Factory | Authchip IN-MT5's Pitchfork "Insurrection" | x1 | -5/Factory | Authchip IN-MT5's Pitchfork "Insurrection" | x1 | -5/Factory | Authchip IN-MT5's Pitchfork "Insurrection" | x1 | -3/Research | Authchip Repaired ---------- Hvy. Assault Rifle | 12% | -9/Materials Alien Tech Used ----------------- None Achievements -------------- None Challenges ------------ None Game ------ Seed CooledGravityThruster Manual? 0 Play Time 05:26:28 Cumulative 1021.9 hours Start 2025.07.05 @ 00:21:34 End 2025.07.05 @ 23:41:39 Sessions 9 Manual Loads 0 Difficulty Rogue Special Mode None Game No. 515 Rogue 515 Adventurer 0 Explorer 0 Win Type - Total 23 Types 10/4/3/0/1/1/2/2/0/0 Lore% 88 Gallery% 89 Achievement% 83 Wizard Run 0 Options --------- Layout 0 ASCII 0 Keyboard 0 Movement Numpad Keybinds 0 Fullscreen 2 Font 24/Smallcaps Map View 76x50 Zoom Use 0% Tactical HUD 1 Map Filters NONE Filters SHIFT_HUE(315) Steam 1 RUN: 6968c019-46d1-45dc-b915-472157adc8d4